Workbook

Sheet UEM
A1: MINISTÉRIO DA INTEGRAÇÃO E DO DESENVOLVIMENTO REGIONAL | J1: BDI serviç | K1: 1.2591
A2: COMPANHIA DE DESENVOLVIMENTO DOS VALES DO SÃO FRANCISCO E DO PARNAÍBA | J2: BDI fornec. | K2: 1.136
A3: SEDE
A4: PLANILHA ORÇAMENTÁRIA DE ESTIMATIVA GERAL PARA O ESTADO DO TOCANTINS | H4: Base SINAPI-TO 03/2025 ORSE 02/2025
H5: Data: Maio/2025 - Não desonerado
A7: Item | B7: Base | C7: Código | D7: Descrição | E7: Unid. | F7: Quant. | G7: Valor (R$)
G8: Unit. (sem BDI) | H8: Unit. (com BDI) | I8: Total
A10: 1 | D10: UNIDADE DE EXTRAÇÃO DE MEL | I10: =SUM(I12,I15,I21,I28,I34,I36,I40,I43,I48,I54) -> 232225.0567
A12: 1.1 | D12: SERVIÇOS PRELIMINARES | I12: =SUM(I13:I14) -> 3578.6
A13: 1.2 | B13: sinapi | C13: 105009 | D13: =[1]CPU!$A$91 -> LOCAÇÃO DE OBRAS | E13: m | F13: =(7.89*2+9.6*2) -> 34.98 | G13: =J13 -> 79.85 | H13: =(G13*K$1) -> 100.539135 | I13: =ROUND(F13*H13,2) -> 3516.86 | J13: 79.85
A14: 1.3 | B14: Sinapi | C14: 98525 | D14: LIMPEZA MECANIZADA DE CAMADA VEGETAL, VEGETAÇÃO E PEQUENAS ÁRVORES (DIÂMETRO DE TRONCO MENOR QUE 0,20 M), COM TRATOR DE ESTEIRAS. | E14: m² | F14: =9.56*7.891 -> 75.43796 | G14: =J14 -> 0.65 | H14: =(G14*K$1) -> 0.818415 | I14: =ROUND(F14*H14,2) -> 61.74 | J14: 0.65
A15: 1.4 | D15: MOVIMENTO DE TERRA | I15: =SUM(I16:I20) -> 2087.56
A16: 1.5 | B16: Sinapi | C16: 101230 | D16: ESCAVAÇÃO VERTICAL A CÉU ABERTO, EM OBRAS DE INFRAESTRUTURA, INCLUINDO CARGA, DESCARGA E TRANSPORTE, EM SOLO DE 1ª CATEGORIA COM ESCAVADEIRA HIDRÁULICA (CAÇAMBA: 0,8 M³ / 111 HP) | E16: m³ | F16: =45.5+1.92+4.32+3 -> 54.74 | G16: =J16 -> 11.3 | H16: =(G16*K$1) -> 14.22783 | I16: =ROUND(F16*H16,2) -> 778.83 | J16: 11.3
A17: 1.6 | B17: Sinapi | C17: 100577 | D17: REGULARIZAÇÃO E COMPACTAÇÃO DE SUBLEITO DE SOLO PREDOMINANTEMENTE ARENOSO. | E17: m² | F17: =9.6*7.9*0.6 -> 45.504 | G17: =J17 -> 0.47 | H17: =(G17*K$1) -> 0.591777 | I17: =ROUND(F17*H17,2) -> 26.93 | J17: 0.47
A18: 1.7 | B18: Sinapi | C18: 96385 | D18: EXECUÇÃO E COMPACTAÇÃO DE ATERRO COM SOLO PREDOMINANTEMENTE ARGILOSO - EXCLUSIVE SOLO, ESCAVAÇÃO, CARGA E TRANSPORTE | E18: m³ | F18: 64.4 | G18: 12.56 | H18: 15.814296 | I18: =ROUND(F18*H18,2) -> 1018.44 | J18: 12.56
A19: 1.8 | B19: Sinapi | C19: 100574 | D19: ESPALHAMENTO DE MATERIAL COM TRATOR DE ESTEIRAS. | E19: m³ | F19: 19.05 | G19: 1.38 | H19: 1.737558 | I19: =ROUND(F19*H19,2) -> 33.1 | J19: 1.38
A20: 1.9 | B20: Sinapi | C20: 100973 | D20: CARGA, MANOBRA E DESCARGA DE SOLOS E MATERIAIS GRANULARES EM CAMINHÃO BASCULANTE 6 M³ - CARGA COM PÁ CARREGADEIRA (CAÇAMBA DE 1,7 A 2,8 M³ /128 HP) E DESCARGA LIVRE | E20: m³ | F20: 19.05 | G20: 9.6 | H20: 12.08736 | I20: =ROUND(F20*H20,2) -> 230.26 | J20: 9.6
A21: 1.10 | D21: FUNDAÇÕES/ ESTRUTURAS DE CONCRETO ARMADO | I21: =SUM(I22:I25) -> 5862.88
A22: 1.11 | B22: Sinapi | C22: 92802 | D22: CORTE E DOBRA DE AÇO CA-50, DIÂMETRO DE 8,0 MM | E22: kg | F22: 101.6 | G22: =J22 -> 10.77 | H22: =(G22*K$1) -> 13.560507 | I22: =ROUND(F22*H22,2) -> 1377.75 | J22: 10.77
A23: 1.12 | B23: Sinapi | C23: 94965 | D23: CONCRETO FCK = 25MPA, TRAÇO 1:2,3:2,7 (CIMENTO/ AREIA MÉDIA/ BRITA 1) - PREPARO MECÂNICO COM BETONEIRA 400 L. | E23: m³ | F23: =2.16+1.8 -> 3.96 | G23: =J23 -> 597.93 | H23: =(G23*K$1) -> 752.853663 | I23: =ROUND(F23*H23,2) -> 2981.3 | J23: 597.93
A24: 1.13 | B24: Sinapi | C24: 103673 | D24: LANÇAMENTO COM USO DE BOMBA, ADENSAMENTO E ACABAMENTO DE CONCRETO EM ESTRUTURAS. AF_02/2022 | E24: m³ | F24: 3.96 | G24: 41.49 | H24: 52.240059 | I24: =ROUND(F24*H24,2) -> 206.87 | J24: 41.49
A25: 1.14 | B25: Sinapi | C25: 97086 | D25: FABRICAÇÃO, MONTAGEM E DESMONTAGEM DE FORMA PARA RADIER, EM MADEIRA SERRADA, 4 UTILIZAÇÕES. | E25: m² | F25: 7.8 | G25: 132.06 | H25: 166.276746 | I25: =ROUND(F25*H25,2) -> 1296.96 | J25: 132.06
A26: 1.15 | D26: REVESTIMENTOS | I26: =SUM(I27:I27) -> 0
A27: 1.16 | B27: Sinapi | C27: 98555 | D27: IMPERMEABILIZAÇÃO DE SUPERFÍCIE COM ARGAMASSA POLIMÉRICA / MEMBRANA ACRÍLICA, 3 DEMÃOS. | E27: m² | F27: 0 | G27: =(J27) -> 0 | H27: =(J27*K$1) -> 0 | I27: =ROUND(F27*H27,2) -> 0
A28: 1.17 | D28: ALVENARIAS, DIVISÓRIAS E FECHAMENTOS | I28: =SUM(I29:I33) -> 6904.09
A29: 1.18 | B29: CPU | C29: CPU010 | D29: REVESTIMENTO DE PAREDES EM CHAPAS DE AÇO INOXIDÁVEL AISI 304 - APENAS INSTALAÇÃO | E29: m³ | F29: 70.54 | H29: =(G29*K$1) -> 0 | I29: =ROUND(F29*H29,2) -> 0 | J29: =CPU!I211 -> 46.688
A30: 1.19 | B30: ORSE | C30: 10280/ORSE | D30: MANTA EM LÃ DE VIDRO | E30: m² | F30: 66.278 | G30: =J30 -> 15.05 | H30: =(G30*K$1) -> 18.949455 | I30: =ROUND(F30*H30,2) -> 1255.93 | J30: 15.05
A31: 1.20 | B31: CPU | C31: CPU009 | D31: CHAPA XADREZ EM ALUMINIO PARA PISO e:3mm, INCLUSO REBITE PARA FIXAÇÃO - APENAS MÃO DE OBRA | E31: m³ | F31: 29.9 | H31: 0 | I31: =ROUND(F31*H31,2) -> 0 | J31: =CPU!I198 -> 384.6769
A32: 1.21 | B32: Sinapi | C32: 96486 | D32: FORRO EM RÉGUAS DE PVC, LISO, PARA AMBIENTES COMERCIAIS, INCLUSIVE ESTRUTURA BIDIRECIONAL DE FIXAÇÃO | E32: m² | F32: 29.93 | G32: 65.53 | H32: 82.508823 | I32: =ROUND(F32*H32,2) -> 2469.49 | J32: 65.53
A33: 1.22 | B33: Sinapi | C33: 104723 | D33: PAREDE COM SISTEMA EM CHAPAS DE GESSO PARA DRYWALL, USO INTERNO, COM DUAS FACES DUPLAS E ESTRUTURA METÁLICA COM GUIAS DUPLAS PARA PAREDES COM ÁREA LÍQUIDA MENOR QUE 6 M2, COM VÃOS. | E33: m² | F33: 12.096 | G33: 208.71 | H33: 262.786761 | I33: =ROUND(F33*H33,2) -> 3178.67 | J33: 208.71
A34: 1.23 | D34: PINTURAS | I34: =SUM(I35:I35) -> 8085.96
A35: 1.24 | B35: Sinapi | C35: 100751 | D35: PINTURA COM TINTA EPOXÍDICA DE ACABAMENTO PULVERIZADA SOBRE PERFIL METÁLICO EXECUTADO EM FÁBRICA (02 DEMÃOS). | E35: m² | F35: 170.3 | G35: =J35 -> 37.71 | H35: =(G35*K$1) -> 47.480661 | I35: =ROUND(F35*H35,2) -> 8085.96 | J35: 37.71
A36: 1.25 | D36: COBERTURAS | I36: =SUM(I37:I39) -> 40991.2
A37: 1.26 | B37: ORSE | C37: 13874/ORSE | D37: ESTRUTURA METALICA P/ COBERTURA DE CRECHE PADRÃO 1 DO PADRÃO FNDE, EM LIGTH STEEL FRAME, COM PERFIS UE70 MONTANTES DE TUBO UE70, INCLUSIVE FORNECIMENTO E MONTAGEM. EXCLUSIVE TELHAS | E37: m² | F37: 96 | G37: =J37 -> 113.51 | H37: =(G37*K$1) -> 142.920441 | I37: =ROUND(F37*H37,2) -> 13720.36 | J37: 113.51
A38: 1.27 | B38: Sinapi | C38: 94216 | D38: TELHAMENTO COM TELHA METÁLICA TERMOACÚSTICA E = 30 MM, COM ATÉ 2 ÁGUAS, INCLUSO IÇAMENTO | E38: m² | F38: 96 | G38: =J38 -> 211.54 | H38: =(G38*K$1) -> 266.350014 | I38: =ROUND(F38*H38,2) -> 25569.6 | J38: 211.54
A39: 1.28 | B39: Sinapi | C39: 94228 | D39: CALHA EM CHAPA DE AÇO GALVANIZADO NÚMERO 24, DESENVOLVIMENTO DE 50 CM, INCLUSO TRANSPORTE VERTICAL. AF_07/2019 | E39: m | F39: =16*1.1 -> 17.6 | G39: 76.77 | H39: 96.661107 | I39: =ROUND(F39*H39,2) -> 1701.24 | J39: 76.77
A40: 1.29 | D40: CONSTRUÇÃO CIVIL | I40: =SUM(I41:I42) -> 8225.01
A41: 1.30 | B41: Sinapi | C41: 91341 | D41: PORTA EM ALUMÍNIO DE ABRIR TIPO VENEZIANA COM GUARNIÇÃO, FIXAÇÃO COM PARAFUSOS - FORNECIMENTO E INSTALAÇÃO. | E41: m² | F41: 5.04 | G41: =J41 -> 705.81 | H41: =(G41*K$1) -> 888.685371 | I41: =ROUND(F41*H41,2) -> 4478.97 | J41: 705.81
A42: 1.31 | B42: Sinapi | C42: 100674 | D42: CAIXILHO FIXO DE ALUMÍNIO PARA VIDRO (VIDRO INCLUSO), BATENTE/ REQUADRO DE 4 A 14 CM, SEM GUARNIÇÃO/ ALIZAR, FIXAÇÃO COM PARAFUSOS, VEDAÇÃO COM SILICONE, EXCLUSIVE CONTRAMARCO - FORNECIMENTO E INSTALAÇÃO. AF_11/2024 | E42: m² | F42: 3.75 | G42: =J42 -> 793.38 | H42: =(G42*K$1) -> 998.944758 | I42: =ROUND(F42*H42,2) -> 3746.04 | J42: 793.38
A43: 1.32 | D43: INSTALAÇÕES PREDIAIS | I43: =SUM(I44:I47) -> 14036.69
A44: 1.33 | B44: CPU | C44: CPU001 | D44: =[1]CPU!$A$65 -> EXECUÇÃO DE INSTALAÇÕES HIDROSSANITÁRIAS, EXCLUSIVE EQUIPAMENTOS | E44: =[1]CPU!$I$78 -> cj | F44: 1 | G44: =J44 -> 2831.2 | H44: =(G44*K$1) -> 3564.76392 | I44: =ROUND(F44*H44,2) -> 3564.76 | J44: =CPU!I44 -> 2831.2
A45: 1.34 | B45: Sinapi | C45: 98052 | D45: TANQUE SÉPTICO CIRCULAR, EM CONCRETO PRÉ-MOLDADO, DIÂMETRO INTERNO = 1,10 M, ALTURA INTERNA = 2,50 M, VOLUME ÚTIL: 2138,2 L (PARA 5 CONTRIBUINTES). | E45: UND | F45: 1 | G45: =J45 -> 2024.84 | H45: =(G45*K$1) -> 2549.476044 | I45: =ROUND(F45*H45,2) -> 2549.48 | J45: 2024.84
A46: 1.35 | B46: Sinapi | C46: 98062 | D46: SUMIDOURO CIRCULAR, EM CONCRETO PRÉ-MOLDADO, DIÂMETRO INTERNO = 1,88 M, ALTURA INTERNA = 2,00 M, ÁREA DE INFILTRAÇÃO: 13,1 M² (PARA 5 CONTRIBUINTES) | E46: UND | F46: 1 | G46: =J46 -> 3021.36 | H46: 3804.194376 | I46: =ROUND(F46*H46,2) -> 3804.19 | J46: 3021.36
A47: 1.36 | B47: CPU | C47: CPU002 | D47: =[1]CPU!$A$78 -> EXECUÇÃO DE INSTALAÇÕES ELÉTRICAS, EXCLUSIVE EQUIPAMENTOS | E47: =[1]CPU!$I$78 -> cj | F47: 1 | G47: =J47 -> 3270.8 | H47: 4118.26428 | I47: =ROUND(F47*H47,2) -> 4118.26 | J47: =CPU!I57 -> 3270.8
A48: 1.37 | D48: SERVIÇOS DIVERSOS | I48: =SUM(I49:I53) -> 27657.35
A49: 1.38 | B49: CPU | C49: CPU003 | D49: =[1]CPU!$A$140 -> CORTE DE CONTAINER PARA ESQUADRIAS | E49: =[1]CPU!$I$140 -> m² | F49: 16.45 | G49: =J49 -> 174.73525 | H49: =(G49*K$1) -> 220.0091533 | I49: =ROUND(F49*H49,2) -> 3619.15 | J49: =CPU!I76 -> 174.73525
A50: 1.39 | B50: CPU | C50: CPU004 | D50: =[1]CPU!$A$182 -> MODIFICAÇÕES NO CONTAINER COM CORTE POR ESMERILHADEIRA | E50: =[1]CPU!$I$182 -> m | F50: 58.26 | G50: =J50 -> 91.34 | H50: =(G50*K$1) -> 115.006194 | I50: 6700.26 | J50: =CPU!I118 -> 91.34
A51: 1.40 | B51: CPU | C51: CPU005 | D51: =[1]CPU!$A$200 -> MODIFICAÇÕES NO CONTAINER UNIÃO ATRAVÉS DO PROCESSO DE SOLDAGEM, INCLUSO IÇAMENTO DO CONTAINER | E51: =[1]CPU!$I$200 -> m | F51: 21.9 | G51: 376.072266 | H51: 473.5125901 | I51: 10369.93 | J51: =CPU!I140 -> 376.072266
A52: 1.41 | B52: CPU | C52: CPU011 | D52: GUARDA-CORPO DE AÇO CARBONO, MONTANTES TUBULARES DE 1.1/2" ESPAÇADOS EM 0,75M, ALTURA APROXIMADA DE 0,90M, PREPARADO COM FUNDO E TINTA EPÓXI NA COR AMARELA | E52: m | F52: =0.75*2*3*1.1 -> 4.95 | G52: 500.8164597 | H52: 630.5780044 | I52: 3121.36 | J52: =CPU!I234 -> 500.8164597
A53: 1.42 | B53: CPU | C53: CPU013 | D53: FORNECIMENTO E INSTALAÇÃO DE SUPORTE PARA CAIXA D'ÁGUA EM METALON | E53: un | F53: 1 | G53: 3055.076544 | H53: 3846.646877 | I53: 3846.65 | J53: =CPU!I274 -> 3055.076544
A54: 1.43 | D54: MATERIAIS | I54: =SUM(I55:I116) -> 114795.7167
A55: 1.44 | B55: Cotação | D55: CONTAINER DRY BOX 20 PÉS 6,1X2,21X2,6 (COMPXLARGXALTU) | E55: un | F55: 2 | G55: =J55 -> 19603.75 | H55: =G55*$K$2 -> 22269.86 | I55: =ROUND(F55*H55,2) -> 44539.72 | J55: =CPU!I244 -> 19603.75
A56: 1.45 | B56: Sinapi | C56: 89356 | D56: TUBO PVC, SOLDAVEL, DN 25 MM, AGUA FRIA (NBR-5648) | E56: m | F56: 12 | G56: =J56 -> 25.43 | H56: =G56*$K$2 -> 28.88848 | I56: 346.66 | J56: 25.43
A57: 1.46 | B57: Sinapi | C57: 89357 | D57: TUBO PVC, SOLDAVEL, DN 32 MM, AGUA FRIA (NBR-5648) | E57: m | F57: 18 | G57: 34.82 | H57: 39.55552 | I57: 712 | J57: 34.82
A58: 1.47 | B58: Sinapi | C58: 9835 | D58: TUBO PVC SERIE NORMAL, DN 40 MM, PARA ESGOTO PREDIAL (NBR 5688) | E58: m | F58: 3 | G58: 6.32 | H58: 7.17952 | I58: 21.54 | J58: 6.32
A59: 1.48 | B59: Sinapi | C59: 9838 | D59: TUBO PVC SERIE NORMAL, DN 50 MM, PARA ESGOTO PREDIAL (NBR 5688) | E59: m | F59: 20 | G59: 10.45 | H59: 11.8712 | I59: 237.42 | J59: 10.45
A60: 1.49 | B60: Sinapi | C60: 9836 | D60: UBO PVC SERIE NORMAL, DN 100 MM, PARA ESGOTO PREDIAL (NBR 5688) | E60: m | F60: 1 | G60: 14.48 | H60: 16.44928 | I60: 16.45 | J60: 14.48
A61: 1.50 | B61: Sinapi | C61: 89362 | D61: JOELHO 90 GRAUS, PVC, SOLDÁVEL, DN 25MM, INSTALADO EM RAMAL OU SUB-RAMAL DE ÁGUA - FORNECIMENTO E INSTALAÇÃO. AF_06/2022 | E61: un | F61: 12 | G61: 10.17 | H61: 11.55312 | I61: 138.64 | J61: 10.17
A62: 1.51 | B62: Sinapi | C62: 89367 | D62: JOELHO 90 GRAUS, PVC, SOLDÁVEL, DN 32MM, INSTALADO EM RAMAL OU SUB-RAMAL DE ÁGUA - FORNECIMENTO E INSTALAÇÃO. AF_06/2022 | E62: un | F62: 10 | G62: 13.97 | H62: 15.86992 | I62: =ROUND(F62*H62,2) -> 158.7 | J62: 13.97
A63: 1.52 | B63: Sinapi | C63: 3515 | D63: JOELHO PVC, SOLDAVEL, COM BUCHA DE LATAO, 90 GRAUS, 20 MM X 1/2", PARA AGUA FRIA | E63: un | F63: 2 | G63: 6.95 | H63: 7.8952 | I63: =ROUND(F63*H63,2) -> 15.79 | J63: 6.95
A64: 1.53 | B64: Sinapi | C64: 7121 | D64: TE PVC, SOLDAVEL, COM BUCHA DE LATAO NA BOLSA CENTRAL, 90 GRAUS, 20 MM X 1/2", PARA AGUA FRIA PREDIAL | E64: un | F64: 2 | G64: 9.77 | H64: 11.09872 | I64: =ROUND(F64*H64,2) -> 22.2 | J64: 9.77
A65: 1.54 | B65: Sinapi | C65: 798 | D65: BUCHA DE REDUCAO PVC ROSCAVEL 3/4" X 1/2" | E65: un | F65: 2 | G65: 1.25 | H65: 1.42 | I65: =ROUND(F65*H65,2) -> 2.84 | J65: 1.25
A66: 1.55 | B66: Sinapi | C66: 103957 | D66: BUCHA DE REDUÇÃO, CURTA, PVC, SOLDÁVEL, DN 32 X 25 MM, INSTALADO EM PRUMADA DE ÁGUA - FORNECIMENTO E INSTALAÇÃO. AF_06/2022 | E66: un | F66: 2 | G66: 5.16 | H66: 5.86176 | I66: 11.72 | J66: 5.16
A67: 1.56 | B67: Sinapi | C67: 3878 | D67: LUVA PVC, ROSCAVEL, 1 1/2", AGUA FRIA PREDIAL | E67: un | F67: 2 | G67: 12.75 | H67: 14.484 | I67: 28.97 | J67: 12.75
A68: 1.57 | B68: Sinapi | C68: 4177 | D68: NIPLE DE FERRO GALVANIZADO, COM ROSCA BSP, DE 1/2" | E68: un | F68: 2 | G68: 5.47 | H68: 6.21392 | I68: 12.43 | J68: 5.47
A69: 1.58 | B69: Sinapi | C69: 89395 | D69: TE, PVC, SOLDÁVEL, DN 25MM, INSTALADO EM RAMAL OU SUB-RAMAL DE ÁGUA - FORNECIMENTO E INSTALAÇÃO. AF_06/2022 | E69: un | F69: 3 | G69: 14.02 | H69: 15.92672 | I69: 47.78 | J69: 14.02
A70: 1.59 | B70: Sinapi | C70: 89398 | D70: TE, PVC, SOLDÁVEL, DN 32MM, INSTALADO EM RAMAL OU SUB-RAMAL DE ÁGUA - FORNECIMENTO E INSTALAÇÃO. AF_06/2022 | E70: un | F70: 3 | G70: 19.49 | H70: 22.14064 | I70: 66.42 | J70: 19.49
A71: 1.60 | B71: Sinapi | C71: 97 | D71: ADAPTADOR PVC SOLDAVEL, COM FLANGE E ANEL DE VEDACAO, 32 MM X 1", PARA CAIXA D'AGUA | E71: un | F71: 4 | G71: 19.77 | H71: 22.45872 | I71: 89.83 | J71: 19.77
A72: 1.61 | B72: Sinapi | C72: 11675 | D72: REGISTRO DE ESFERA, PVC, COM VOLANTE, VS, SOLDAVEL, DN 32 MM, | E72: un | F72: 4 | G72: 23.34 | H72: 26.51424 | I72: 106.06 | J72: 23.34
A73: 1.62 | B73: Sinapi | C73: 34637 | D73: CAIXA D'AGUA / RESERVATORIO EM POLIETILENO, 500 LITROS, COM TAMPA | E73: un | F73: 1 | G73: 332.61 | H73: 377.84496 | I73: 377.84 | J73: 332.61
A74: 1.63 | B74: Sinapi | C74: 94495 | D74: REGISTRO DE GAVETA BRUTO, LATÃO, ROSCÁVEL, 1" - FORNECIMENTO E INSTALAÇÃO. AF_08/2021 | E74: un | F74: 1 | G74: 66.17 | H74: 75.16912 | I74: 75.17 | J74: 66.17
A75: 1.64 | B75: Sinapi | C75: 94496 | D75: REGISTRO DE GAVETA BRUTO, LATÃO, ROSCÁVEL, 1 1/4" - FORNECIMENTO E INSTALAÇÃO. AF_08/2021 | E75: un | F75: 2 | G75: 90.16 | H75: 102.42176 | I75: 204.84 | J75: 90.16
A76: 1.65 | B76: Sinapi | C76: 7603 | D76: TORNEIRA DE METAL AMARELO, PARA TANQUE / JARDIM, DE PAREDE, SEM BICO, CANO CURTO, PADRAO POPULAR / USO GERA | E76: un | F76: 2 | G76: 44.65 | H76: 50.7224 | I76: 101.44 | J76: 44.65
A77: 1.66 | B77: Sinapi | C77: 94795 | D77: TORNEIRA DE BOIA PARA CAIXA D'ÁGUA, ROSCÁVEL, 1/2" - FORNECIMENTO E INSTALAÇÃO. AF_08/2021 | E77: un | F77: 1 | G77: 35.49 | H77: 40.31664 | I77: 40.32 | J77: 35.49
A78: 1.67 | B78: Sinapi | C78: 20080 | D78: ADESIVO PLASTICO PARA PVC, FRASCO COM 175 GR | E78: un | F78: 2 | G78: 22.4 | H78: 25.4464 | I78: =ROUND(F78*H78,2) -> 50.89 | J78: 22.4
A79: 1.68 | B79: Sinapi | C79: 3143 | D79: FITA VEDA ROSCA 18MMX25M | E79: un | F79: 1 | G79: 9.1 | H79: 10.3376 | I79: =ROUND(F79*H79,2) -> 10.34 | J79: 9.1
A80: 1.69 | B80: Sinapi | C80: 35277 | D80: CAIXA DE GORDURA EM PVC, DIAMETRO MINIMO 300 MM, DIAMETRO DE SAIDA 100 MM CAPACIDADE APROXIMADA 18 LITROS, COM TAMPA E CESTO | E80: un | F80: 1 | G80: 354.57 | H80: 402.79152 | I80: =ROUND(F80*H80,2) -> 402.79 | J80: 354.57
A81: 1.70 | B81: Sinapi | C81: 11735 | D81: PROLONGADOR PAR CAIXA DE GORDURA E INSPEÇÃO DN300, PVC | E81: un | F81: 1 | G81: 8.83 | H81: 10.03088 | I81: =ROUND(F81*H81,2) -> 10.03 | J81: 8.83
A82: 1.71 | B82: Sinapi | C82: 89482 | D82: CAIXA SIFONADA, PVC, DN 100 X 100 X 50 MM, FORNECIDA E INSTALADA EM RAMAIS DE ENCAMINHAMENTO DE ÁGUA PLUVIAL. AF_06/2022 | E82: un | F82: 5 | G82: 39.63 | H82: 45.01968 | I82: =ROUND(F82*H82,2) -> 225.1 | J82: 39.63
A83: 1.72 | B83: Sinapi | C83: 94679 | D83: CURVA 90 GRAUS, PVC, SOLDÁVEL, DN 50 MM, INSTALADO EM RESERVAÇÃO DE ÁGUA DE EDIFICAÇÃO QUE POSSUA RESERVATÓRIO DE FIBRA/FIBROCIMENTO FORNECIMENTO E INSTALAÇÃO. AF_06/2016 | E83: un | F83: 11 | G83: 24.36 | H83: 27.67296 | I83: 304.4 | J83: 24.36
A84: 1.73 | B84: Sinapi | C84: 89504 | D84: CURVA 45 GRAUS, PVC, SOLDÁVEL, DN 50MM, INSTALADO EM PRUMADA DE ÁGUA - FORNECIMENTO E INSTALAÇÃO. AF_06/2022 | E84: un | F84: 3 | G84: 19.64 | H84: 22.31104 | I84: 66.93 | J84: 19.64
A85: 1.74 | B85: Sinapi | C85: 89724 | D85: JOELHO 90 GRAUS, PVC, SERIE NORMAL, ESGOTO PREDIAL, DN 40 MM, JUNTA SOLDÁVEL, FORNECIDO E INSTALADO EM RAMAL DE DESCARGA OU RAMAL DE ESGOTO SANITÁRIO. AF_08/2022 | E85: un | F85: 1 | G85: 10.76 | H85: 12.22336 | I85: 12.22 | J85: 10.76
A86: 1.75 | B86: Sinapi | C86: 89731 | D86: JOELHO 90 GRAUS, PVC, SERIE NORMAL, ESGOTO PREDIAL, DN 50 MM, JUNTA ELÁSTICA, FORNECIDO E INSTALADO EM RAMAL DE DESCARGA OU RAMAL DE ESGOTO SANITÁRIO. AF_08/2022 | E86: un | F86: 8 | G86: 15.2 | H86: 17.2672 | I86: 138.14 | J86: 15.2
A87: 1.76 | B87: Sinapi | C87: 89563 | D87: JUNÇÃO SIMPLES, PVC, SERIE R, ÁGUA PLUVIAL, DN 50 MM, JUNTA ELÁSTICA, FORNECIDO E INSTALADO EM RAMAL DE ENCAMINHAMENTO. AF_06/2022 | E87: un | F87: 2 | G87: 33.55 | H87: 38.1128 | I87: 76.23 | J87: 33.55
A88: 1.77 | B88: Sinapi | C88: 103995 | D88: LUVA, PVC, SOLDÁVEL, DN 50MM, INSTALADO EM RAMAL DE DISTRIBUIÇÃO DE ÁGUA - FORNECIMENTO E INSTALAÇÃO. AF_06/2022 | E88: un | F88: 17 | G88: 15.9 | H88: 18.0624 | I88: 307.06 | J88: 15.9
A89: 1.78 | B89: Sinapi | C89: 104345 | D89: JUNÇÃO DE REDUÇÃO INVERTIDA, PVC, SÉRIE NORMAL, ESGOTO PREDIAL, DN 100 X 50 MM, JUNTA ELÁSTICA, FORNECIDO E INSTALADO EM RAMAL DE DESCARGA OU RAMAL DE ESGOTO SANITÁRIO. AF_08/2022 | E89: un | F89: 2 | G89: 42.74 | H89: 48.55264 | I89: 97.11 | J89: 42.74
A90: 1.79 | B90: Sinapi | C90: 20043 | D90: REDUÇÃO EXCÊNTRICA, PVC, ÁGUA PLUVIAL, DN 100 X 50 MM, LINHA NORMAL | E90: un | F90: 2 | G90: 8.72 | H90: 9.90592 | I90: =ROUND(F90*H90,2) -> 19.81 | J90: 8.72
A91: 1.80 | B91: Sinapi | C91: 86883 | D91: SIFÃO DO TIPO FLEXÍVEL EM PVC 1 X 1.1/2 - FORNECIMENTO E INSTALAÇÃO. AF_01/2020 | E91: un | F91: 1 | G91: 10.69 | H91: 12.14384 | I91: 12.14 | J91: 10.69
A92: 1.81 | B92: Sinapi | C92: 86941 | D92: LAVATÓRIO LOUÇA BRANCA COM COLUNA, 45 X 55CM OU EQUIVALENTE, PADRÃO MÉDIO, INCLUSO SIFÃO TIPO GARRAFA, VÁLVULA E ENGATE FLEXÍVEL DE 40CM EMMETAL CROMADO, COM TORNEIRA CROMADA DE MESA, PADRÃO MÉDIO - FORNECIMENTO E INSTALAÇÃO. | E92: un | F92: 1 | G92: 817.47 | H92: 928.64592 | I92: 928.65 | J92: 817.47
A93: 1.82 | B93: Sinapi | C93: 86936 | D93: CUBA DE EMBUTIR DE AÇO INOXIDÁVEL MÉDIA, INCLUSO VÁLVULA TIPO AMERICANA E SIFÃO TIPO GARRAFA EM METAL CROMADO - FORNECIMENTO E INSTALAÇÃO | E93: un | F93: 1 | G93: 464.27 | H93: 527.41072 | I93: 527.41 | J93: 464.27
A94: 1.83 | B94: Cotação | D94: LAVADOR DE BOTAS EM AÇO INOXIDÁVEL AISI 304 | E94: un | F94: 1 | G94: 3888.563333 | H94: 4417.407947 | I94: 4417.41 | J94: =O94 -> 3888.563333 | L94: 5080 | M94: 2452.76 | N94: 4132.93 | O94: =AVERAGE(L94:N94) -> 3888.563333
A95: 1.84 | B95: Sinapi | C95: 86906 | D95: TORNEIRA CROMADA DE MESA, 1/2 OU 3/4, PARA LAVATÓRIO, PADRÃO POPULAR - FORNECIMENTO E INSTALAÇÃO. AF_01/2020 | E95: un | F95: 2 | G95: 86.04 | H95: 97.74144 | I95: 195.48 | J95: 86.04
A96: 1.85 | B96: Sinapi | C96: 94768 | D96: ADAPTADOR COM FLANGE E ANEL DE VEDAÇÃO, CPVC, ROSCÁVEL, DN 42 MM, INSTALADO EM RESERVAÇÃO DE ÁGUA DE EDIFICAÇÃO QUE POSSUA RESERVATÓRIO DE FIBRA/FIBROCIMENTO - FORNECIMENTO E INSTALAÇÃO. AF_06/2016 | E96: un | F96: 1 | G96: 78.13 | H96: 88.75568 | I96: 88.76 | J96: 78.13
A97: 1.86 | B97: Cotação | D97: PEDALEIRA PARA ACIONAMENTO TORNEIRA, ROSCA 1/2" | E97: un | F97: 2 | G97: 145.3966667 | H97: 165.1706133 | I97: =O97 -> 145.3966667 | J97: =O97 -> 145.3966667 | L97: 133.4 | M97: 137.89 | N97: 164.9 | O97: =AVERAGE(L97:N97) -> 145.3966667
A98: 1.87 | B98: Sinapi | C98: 91924 | D98: CABO DE COBRE FLEXÍVEL ISOLADO, 1,5 MM², ANTI-CHAMA 450/750 V, PARA CIRCUITOS TERMINAIS - FORNECIMENTO E INSTALAÇÃO. AF_03/2023 | E98: m | F98: 49 | G98: 3.22 | H98: 3.65792 | I98: 179.24 | J98: 3.22
A99: 1.88 | B99: Sinapi | C99: 91926 | D99: CABO DE COBRE, RIGIDO, CLASSE 2, ISOLACAO EM PVC/A, ANTICHAMA BWF-B, 1 CONDUTOR, 450/750 V, SECAO NOMINAL 2,5 MM2 | E99: m | F99: 180 | G99: 4.69 | H99: 5.32784 | I99: 959.01 | J99: 4.69
A100: 1.89 | B100: Sinapi | C100: 91952 | D100: INTERRUPTOR SIMPLES (1 MÓDULO), 10A/250V, SEM SUPORTE E SEM PLACA - FORNECIMENTO E INSTALAÇÃO. AF_03/2023 | E100: un | F100: 4 | G100: 19.83 | H100: 22.52688 | I100: 90.11 | J100: 19.83
A101: 1.90 | B101: Sinapi | C101: 91990 | D101: TOMADA ALTA DE EMBUTIR (1 MÓDULO), 2P+T 10 A, SEM SUPORTE E SEM PLACA - FORNECIMENTO E INSTALAÇÃO. AF_03/2023 | E101: un | F101: 1 | G101: 36.46 | H101: 41.41856 | I101: 41.42 | J101: 36.46
A102: 1.91 | B102: ORSE | C102: 11054/ORSE | D102: CAIXA METÁLICA COM UMA TOMADA 2P+T PARA INSTALAÇÃO APARENTE | E102: un | F102: 10 | G102: 27.17 | H102: 30.86512 | I102: 308.65 | J102: 27.17
A103: 1.92 | B103: Sinapi | C103: 95777 | D103: CONDULETE DE ALUMÍNIO, TIPO B, PARA ELETRODUTO DE AÇO GALVANIZADO DN 20 MM (3/4''), APARENTE - FORNECIMENTO E INSTALAÇÃO. AF_10/2022 | E103: un | F103: 5 | G103: 26.93 | H103: 30.59248 | I103: 152.96 | J103: 26.93
A104: 1.93 | B104: Sinapi | C104: 101890 | D104: DISJUNTOR MONOPOLAR TIPO NEMA, CORRENTE NOMINAL DE 10 ATÉ 30A - FORNECIMENTO E INSTALAÇÃO. AF_10/2020 | E104: un | F104: 1 | G104: 16.97 | H104: 19.27792 | I104: 19.28 | J104: 16.97
A105: 1.94 | B105: Sinapi | C105: 101892 | D105: DISJUNTOR MONOPOLAR TIPO NEMA, CORRENTE NOMINAL DE 10 ATÉ 50A - FORNECIMENTO E INSTALAÇÃO. AF_10/2020 | E105: un | F105: 7 | G105: 73.27 | H105: 83.23472 | I105: 582.64 | J105: 73.27
A106: 1.95 | B106: ORSE | C106: 07943/ORSE | D106: DISJUNTOR BIPOLAR DR 25A - DISPOSITIVO DIFERENCIAL RESIDUAL, TIPO AC, 30MA | E106: un | F106: 3 | G106: 278.5 | H106: 316.376 | I106: 949.13 | J106: 278.5
A107: 1.96 | B107: Sinapi | C107: 93661 | D107: DISJUNTOR BIPOLAR TIPO DIN, CORRENTE NOMINAL DE 16A - FORNECIMENTO E INSTALAÇÃO. AF_10/2020 | E107: un | F107: 2 | G107: 59.32 | H107: 67.38752 | I107: 134.78 | J107: 59.32
A108: 1.97 | B108: Sinapi | C108: 93665 | D108: DISJUNTOR BIPOLAR TIPO DIN, CORRENTE NOMINAL DE 40A - FORNECIMENTO E INSTALAÇÃO. AF_10/2020 | E108: un | F108: 1 | G108: 70.06 | H108: 79.58816 | I108: 79.59 | J108: 70.06
A109: 1.98 | B109: ORSE | C109: 4878/ORSE | D109: PONTO DE LUZ EM TETO OU PAREDE, APARENTE SEM ELETRODUTO | E109: un | F109: 5 | G109: 65.23 | H109: 74.10128 | I109: 370.51 | J109: 65.23
A110: 1.99 | B110: ORSE | C110: 14448/ORSE | D110: ELETRODUTO DE AÇO GALVANIZADO, CLASSE LEVE, DN 25 MM (1") | E110: m | F110: 50 | G110: 33.67 | H110: 38.24912 | I110: 1912.46 | J110: 33.67
A111: 1.100 | B111: Sinapi | C111: 1879 | D111: CURVA 90° PVC ELETRODUTO ROSCAVEL 3/4" | E111: un | F111: 16 | G111: 2.83 | H111: 3.21488 | I111: 51.44 | J111: 2.83
A112: 1.101 | B112: Sinapi | C112: 39128 | D112: ABRAÇADEIRA GALVANIZADA "D" PARA ELETRODUTO 3/4" COM CUNHA | E112: un | F112: 50 | G112: 2.6 | H112: 2.9536 | I112: 147.68 | J112: 2.6
A113: 1.102 | B113: Sinapi | C113: 101878 | D113: QUADRO DE DISTRIBUIÇÃO DE ENERGIA EM CHAPA DE AÇO GALVANIZADO, DE SOBREPOR, COM BARRAMENTO TRIFÁSICO, PARA 18 DISJUNTORES DIN 100A - FORNECIMENTO E INSTALAÇÃO. AF_10/2020 | E113: un | F113: 1 | G113: 492.99 | H113: 560.03664 | I113: 560.04 | J113: 492.99
A114: 1.103 | B114: Sinapi | C114: 100954 | D114: TRANSPORTE COM CAMINHÃO CARROCERIA COM GUINDAUTO (MUNCK), MOMENTO MÁXIMO DE CARGA 11,7 TM, EM VIA INTERNA (DENTRO DO CANTEIRO - UNIDADE: TXKM). AF_07/2020 | E114: TXKM | F114: 800 | G114: 9.32 | H114: 10.58752 | I114: =ROUND(F114*H114,2) -> 8470.02 | J114: 9.32
A115: 1.104 | B115: CPU | C115: CPU006 | D115: REVESTIMENTO DE PAREDES EM CHAPAS DE AÇO INOXIDÁVEL AISI 304 - APENAS INSTALAÇÃO | E115: m² | F115: 70.54 | G115: 361.236 | H115: 410.364096 | I115: =ROUND(F115*H115,2) -> 28947.08 | J115: =CPU!I153 -> 361.236
A116: 1.105 | B116: CPU | C116: CPU008 | D116: CHAPA XADREZ EM ALUMINIO PARA PISO e:3mm, INCLUSO REBITE PARA FIXAÇÃO - APENAS MÃO DE OBRA | E116: m² | F116: 29.9 | G116: 454.2312 | H116: 516.0066432 | I116: =ROUND(F116*H116,2) -> 15428.6 | J116: =CPU!I185 -> 454.2312

Sheet UBF
A1: MINISTÉRIO DA INTEGRAÇÃO E DO DESENVOLVIMENTO REGIONAL | J1: BDI serviç | K1: 1.2591
A2: COMPANHIA DE DESENVOLVIMENTO DOS VALES DO SÃO FRANCISCO E DO PARNAÍBA | J2: BDI fornec. | K2: 1.136
A3: SEDE
A4: PLANILHA ORÇAMENTÁRIA DE ESTIMATIVA GERAL PARA O ESTADO DO TOCANTINS | H4: Base SINAPI-TO 03/2025 ORSE 02/2025
H5: Data: Maio/2025 - Não desonerado
A7: Item | B7: Base | C7: Código | D7: Descrição | E7: Unid. | F7: Quant. | G7: Valor (R$)
G8: Unit. (sem BDI) | H8: Unit. (com BDI) | I8: Total
A10: 2 | D10: UNIDADE DE BENEFICIAMENTO DE FRUTOS | I10: =SUM(I11,I14,I20+I25,I31,I33,I37,I43,I48,I55) -> 354964.3975
A11: 2.1 | D11: SERVIÇOS PRELIMINARES | I11: =SUM(I12:I13) -> 5149.72
A12: 2.2 | B12: sinapi | C12: 105009 | D12: =[1]CPU!$A$91 -> LOCAÇÃO DE OBRAS | E12: m | F12: 50 | G12: =J12 -> 79.85 | H12: =(G12*K$1) -> 100.539135 | I12: =ROUND(F12*H12,2) -> 5026.96 | J12: 79.85
A13: 2.3 | B13: Sinapi | C13: 98525 | D13: LIMPEZA MECANIZADA DE CAMADA VEGETAL, VEGETAÇÃO E PEQUENAS ÁRVORES (DIÂMETRO DE TRONCO MENOR QUE 0,20 M), COM TRATOR DE ESTEIRAS. | E13: m² | F13: 150 | G13: =J13 -> 0.65 | H13: =(G13*K$1) -> 0.818415 | I13: =ROUND(F13*H13,2) -> 122.76 | J13: 0.65
A14: 2.4 | D14: MOVIMENTO DE TERRA | I14: =SUM(I15:I19) -> 3090.83
A15: 2.5 | B15: Sinapi | C15: 101230 | D15: ESCAVAÇÃO VERTICAL A CÉU ABERTO, EM OBRAS DE INFRAESTRUTURA, INCLUINDO CARGA, DESCARGA E TRANSPORTE, EM SOLO DE 1ª CATEGORIA COM ESCAVADEIRA HIDRÁULICA (CAÇAMBA: 0,8 M³ / 111 HP) | E15: m³ | F15: 54.76 | G15: =J15 -> 11.3 | H15: =(G15*K$1) -> 14.22783 | I15: =ROUND(F15*H15,2) -> 779.12 | J15: 11.3
A16: 2.6 | B16: Sinapi | C16: 100577 | D16: REGULARIZAÇÃO E COMPACTAÇÃO DE SUBLEITO DE SOLO PREDOMINANTEMENTE ARENOSO. | E16: m² | F16: 150 | G16: =J16 -> 0.47 | H16: =(G16*K$1) -> 0.591777 | I16: =ROUND(F16*H16,2) -> 88.77 | J16: 0.47
A17: 2.7 | B17: Sinapi | C17: 96385 | D17: EXECUÇÃO E COMPACTAÇÃO DE ATERRO COM SOLO PREDOMINANTEMENTE ARGILOSO - EXCLUSIVE SOLO, ESCAVAÇÃO, CARGA E TRANSPORTE | E17: m³ | F17: 75 | G17: 12.56 | H17: 15.814296 | I17: =ROUND(F17*H17,2) -> 1186.07 | J17: 12.56
A18: 2.8 | B18: Sinapi | C18: 100574 | D18: ESPALHAMENTO DE MATERIAL COM TRATOR DE ESTEIRAS. | E18: m³ | F18: 75 | G18: 1.38 | H18: 1.737558 | I18: =ROUND(F18*H18,2) -> 130.32 | J18: 1.38
A19: 2.9 | B19: Sinapi | C19: 100973 | D19: CARGA, MANOBRA E DESCARGA DE SOLOS E MATERIAIS GRANULARES EM CAMINHÃO BASCULANTE 6 M³ - CARGA COM PÁ CARREGADEIRA (CAÇAMBA DE 1,7 A 2,8 M³ /128 HP) E DESCARGA LIVRE | E19: m³ | F19: 75 | G19: 9.6 | H19: 12.08736 | I19: =ROUND(F19*H19,2) -> 906.55 | J19: 9.6
A20: 2.10 | D20: FUNDAÇÕES/ ESTRUTURAS DE CONCRETO ARMADO | I20: =SUM(I21:I24) -> 16361.29751
A21: 2.11 | B21: Sinapi | C21: 92802 | D21: CORTE E DOBRA DE AÇO CA-50, DIÂMETRO DE 8,0 MM | E21: kg | F21: 101.6 | G21: =J21 -> 10.77 | H21: =G21*K$1 -> 13.560507 | I21: =H21*F21 -> 1377.747511 | J21: 10.77
A22: 2.12 | B22: Sinapi | C22: 94965 | D22: CONCRETO FCK = 25MPA, TRAÇO 1:2,3:2,7 (CIMENTO/ AREIA MÉDIA/ BRITA 1) - PREPARO MECÂNICO COM BETONEIRA 400 L. | E22: m³ | F22: 17 | G22: =J22 -> 597.93 | H22: =G22*K$1 -> 752.853663 | I22: =ROUND(F22*H22,2) -> 12798.51 | J22: 597.93
A23: 2.13 | B23: Sinapi | C23: 103673 | D23: LANÇAMENTO COM USO DE BOMBA, ADENSAMENTO E ACABAMENTO DE CONCRETO EM ESTRUTURAS. AF_02/2022 | E23: m³ | F23: 17 | G23: 41.49 | H23: 52.240059 | I23: =ROUND(F23*H23,2) -> 888.08 | J23: 41.49
A24: 2.14 | B24: Sinapi | C24: 97086 | D24: FABRICAÇÃO, MONTAGEM E DESMONTAGEM DE FORMA PARA RADIER, EM MADEIRA SERRADA, 4 UTILIZAÇÕES. | E24: m² | F24: 7.8 | G24: 132.06 | H24: 166.276746 | I24: =ROUND(F24*H24,2) -> 1296.96 | J24: 132.06
A25: 2.15 | D25: ALVENARIAS, DIVISÓRIAS E FECHAMENTOS | I25: =SUM(I26:I30) -> 55075.53
A26: 2.16 | B26: CPU | C26: CPU010 | D26: REVESTIMENTO DE PAREDES EM CHAPAS DE AÇO INOXIDÁVEL AISI 304 - APENAS INSTALAÇÃO | E26: m² | F26: 160.29 | G26: 46.688 | H26: =(G26*K$1) -> 58.7848608 | I26: =ROUND(F26*H26,2) -> 9422.63 | J26: =CPU!I211 -> 46.688
A27: 2.17 | B27: ORSE | C27: 10280/ORSE | D27: MANTA EM LÃ DE VIDRO | E27: m² | F27: 134.78 | G27: 15.05 | H27: =(G27*K$1) -> 18.949455 | I27: =ROUND(F27*H27,2) -> 2554.01 | J27: 15.05
A28: 2.18 | B28: CPU | C28: CPU009 | D28: CHAPA XADREZ EM ALUMINIO PARA PISO e:3mm, INCLUSO REBITE PARA FIXAÇÃO - APENAS INSTALAÇÃO | E28: m² | F28: 56.544 | G28: 384.6769 | H28: 484.3466848 | I28: =ROUND(F28*H28,2) -> 27386.9 | J28: =CPU!I198 -> 384.6769
A29: 2.19 | B29: Sinapi | C29: 104723 | D29: PAREDE COM SISTEMA EM CHAPAS DE GESSO PARA DRYWALL, USO INTERNO, COM DUAS FACES DUPLAS E ESTRUTURA METÁLICA COM GUIAS DUPLAS PARA PAREDES COM ÁREA LÍQUIDA MENOR QUE 6 M2, COM VÃOS. | E29: m² | F29: 42.8 | G29: =J29 -> 208.71 | H29: 262.786761 | I29: =ROUND(F29*H29,2) -> 11247.27 | J29: 208.71
A30: 2.20 | B30: Sinapi | C30: 96486 | D30: FORRO EM RÉGUAS DE PVC, LISO, PARA AMBIENTES COMERCIAIS, INCLUSIVE ESTRUTURA BIDIRECIONAL DE FIXAÇÃO | E30: m² | F30: 54.112 | G30: 65.53 | H30: 82.508823 | I30: =ROUND(F30*H30,2) -> 4464.72 | J30: 65.53
A31: 2.21 | D31: PINTURAS | I31: =SUM(I32:I32) -> 12530.15
A32: 2.22 | B32: Sinapi | C32: 100751 | D32: PINTURA COM TINTA EPOXÍDICA DE ACABAMENTO PULVERIZADA SOBRE PERFIL METÁLICO EXECUTADO EM FÁBRICA (02 DEMÃOS). | E32: m² | F32: 263.9 | G32: =J32 -> 37.71 | H32: =(G32*K$1) -> 47.480661 | I32: =ROUND(F32*H32,2) -> 12530.15 | J32: 37.71
A33: 2.23 | D33: COBERTURAS | I33: =SUM(I34:I36) -> 42020.3
A34: 2.24 | B34: ORSE | C34: 13874/ORSE | D34: ESTRUTURA METALICA P/ COBERTURA DE CRECHE PADRÃO 1 DO PADRÃO FNDE, EM LIGTH STEEL FRAME, COM PERFIS UE70 MONTANTES DE TUBO UE70, INCLUSIVE FORNECIMENTO E MONTAGEM. EXCLUSIVE TELHAS | E34: m² | F34: 98.42 | G34: =J34 -> 113.51 | H34: =(G34*K$1) -> 142.920441 | I34: =ROUND(F34*H34,2) -> 14066.23 | J34: 113.51
A35: 2.25 | B35: Sinapi | C35: 94216 | D35: TELHAMENTO COM TELHA METÁLICA TERMOACÚSTICA E = 30 MM, COM ATÉ 2 ÁGUAS, INCLUSO IÇAMENTO | E35: m² | F35: 98.42 | G35: =J35 -> 211.54 | H35: =(G35*K$1) -> 266.350014 | I35: =ROUND(F35*H35,2) -> 26214.17 | J35: 211.54
A36: 2.26 | B36: Sinapi | C36: 94228 | D36: CALHA EM CHAPA DE AÇO GALVANIZADO NÚMERO 24, DESENVOLVIMENTO DE 50 CM, INCLUSO TRANSPORTE VERTICAL. AF_07/2019 | E36: m | F36: 18 | G36: 76.77 | H36: 96.661107 | I36: =ROUND(F36*H36,2) -> 1739.9 | J36: 76.77
A37: 2.27 | D37: CONSTRUÇÃO CIVIL | I37: =SUM(I38:I40) -> 15249.42
A38: 2.28 | B38: Sinapi | C38: 100702 | D38: PORTA DE CORRER DE ALUMÍNIO, COM DUAS FOLHAS PARA VIDRO, INCLUSO VIDRO LISO INCOLOR, FECHADURA E PUXADOR, SEM ALIZAR. | E38: m² | F38: 4.85 | G38: =J38 -> 496.47 | H38: =(G38*K$1) -> 625.105377 | I38: =ROUND(F38*H38,2) -> 3031.76 | J38: 496.47
A39: 2.29 | B39: Sinapi | C39: 91341 | D39: PORTA EM ALUMÍNIO DE ABRIR TIPO VENEZIANA COM GUARNIÇÃO, FIXAÇÃO COM PARAFUSOS - FORNECIMENTO E INSTALAÇÃO. | E39: m² | F39: 3.8 | G39: =J39 -> 705.81 | H39: =(G39*K$1) -> 888.685371 | I39: =ROUND(F39*H39,2) -> 3377 | J39: 705.81
A40: 2.30 | B40: Sinapi | C40: 100674 | D40: CAIXILHO FIXO DE ALUMÍNIO PARA VIDRO (VIDRO INCLUSO), BATENTE/ REQUADRO DE 4 A 14 CM, SEM GUARNIÇÃO/ ALIZAR, FIXAÇÃO COM PARAFUSOS, VEDAÇÃO COM SILICONE, EXCLUSIVE CONTRAMARCO - FORNECIMENTO E INSTALAÇÃO. AF_11/2024 | E40: m² | F40: 8.85 | G40: 793.38 | H40: 998.944758 | I40: =ROUND(F40*H40,2) -> 8840.66 | J40: 793.38
A41: 2.31 | B41: CPU | C41: CPU007 | D41: REVESTIMENTO CERÂMICO PARA PISO COM PLACAS TIPO ESMALTADA DE DIMENSÕES 45x45cm COM ARGAMASSA AC III | E41: m² | F41: 60 | G41: 96.547666 | H41: 121.5631663 | I41: =ROUND(F41*H41,2) -> 7293.79 | J41: =CPU!I173 -> 96.547666
A42: 2.32 | B42: Sinapi | C42: 94228 | D42: CALHA EM CHAPA DE AÇO GALVANIZADO NÚMERO 24, DESENVOLVIMENTO DE 50 CM, INCLUSO TRANSPORTE VERTICAL. AF_07/2019 | E42: m | F42: 24 | G42: 76.77 | H42: 96.661107 | I42: =ROUND(F42*H42,2) -> 2319.87 | J42: 76.77
A43: 2.33 | D43: INSTALAÇÕES PREDIAIS | I43: =SUM(I44:I47) -> 14036.69
A44: 2.34 | B44: CPU | C44: CPU001 | D44: =[2]CPU!$A$65 -> EXECUÇÃO DE INSTALAÇÕES HIDROSSANITÁRIAS, EXCLUSIVE EQUIPAMENTOS | E44: =[2]CPU!$I$78 -> cj | F44: 1 | G44: 2831.2 | H44: =(G44*K$1) -> 3564.76392 | I44: =ROUND(F44*H44,2) -> 3564.76 | J44: =CPU!I44 -> 2831.2
A45: 2.35 | B45: CPU | C45: CPU002 | D45: =[2]CPU!$A$78 -> EXECUÇÃO DE INSTALAÇÕES ELÉTRICAS, EXCLUSIVE EQUIPAMENTOS | E45: =[2]CPU!$I$78 -> cj | F45: 1 | G45: 3270.8 | H45: =(G45*K$1) -> 4118.26428 | I45: =ROUND(F45*H45,2) -> 4118.26 | J45: =CPU!I57 -> 3270.8
A46: 2.36 | B46: SINAPI | C46: 98052 | D46: TANQUE SÉPTICO CIRCULAR, EM CONCRETO PRÉ-MOLDADO, DIÂMETRO INTERNO = 1,10 M, ALTURA INTERNA = 2,50 M, VOLUME ÚTIL: 2138,2 L (PARA 5 CONTRIBUINTES). | E46: UND | F46: 1 | G46: =J46 -> 2024.84 | H46: =G46*K1 -> 2549.476044 | I46: =ROUND(F46*H46,2) -> 2549.48 | J46: 2024.84
A47: 2.37 | B47: SINAPI | C47: 98062 | D47: SUMIDOURO CIRCULAR, EM CONCRETO PRÉ-MOLDADO, DIÂMETRO INTERNO = 1,88 M, ALTURA INTERNA = 2,00 M, ÁREA DE INFILTRAÇÃO: 13,1 M² (PARA 5 CONTRIBUINTES) | E47: UND | F47: 1 | G47: 3021.36 | H47: =G47*K1 -> 3804.194376 | I47: =ROUND(F47*H47,2) -> 3804.19 | J47: 3021.36
A48: 2.38 | D48: SERVIÇOS DIVERSOS | I48: =SUM(I49:I54) -> 34462.34
A49: 2.39 | B49: CPU | C49: CPU003 | D49: =[2]CPU!$A$140 -> CORTE DE CONTAINER PARA ESQUADRIAS | E49: =[2]CPU!$I$140 -> m² | F49: 12.65 | G49: =J49 -> 174.73525 | H49: =G49*K$1 -> 220.0091533 | I49: =ROUND(F49*H49,2) -> 2783.12 | J49: =CPU!I76 -> 174.73525
A50: 2.40 | B50: CPU | C50: CPU004 | D50: =[2]CPU!$A$182 -> MODIFICAÇÕES NO CONTAINER COM CORTE POR ESMERILHADEIRA | E50: =[2]CPU!$I$182 -> m | F50: 57.68 | G50: 91.34 | H50: =G50*K$1 -> 115.006194 | I50: 6633.56 | J50: =CPU!I118 -> 91.34
A51: 2.41 | B51: CPU | C51: CPU005 | D51: =[2]CPU!$A$200 -> MODIFICAÇÕES NO CONTAINER UNIÃO ATRAVÉS DO PROCESSO DE SOLDAGEM, INCLUSO IÇAMENTO DO CONTAINER | E51: =[2]CPU!$I$200 -> m | F51: 40.8 | G51: 376.072266 | H51: 473.5125901 | I51: 19319.31 | J51: =CPU!I140 -> 376.072266
A52: 2.42 | B52: ORSE | C52: 00900/ORSE | D52: ESCADA DE FERRO COM GUARDA-CORPO | E52: m | F52: 0.9 | G52: 601.49 | H52: 757.336059 | I52: 681.6 | J52: 601.49
A53: 2.43 | B53: CPU | C53: CPU011 | D53: GUARDA-CORPO DE AÇO CARBONO, MONTANTES TUBULARES DE 1.1/2" ESPAÇADOS EM 0,75M, ALTURA APROXIMADA DE 0,90M, PREPARADO COM FUNDO E TINTA EPÓXI NA COR AMARELA | E53: m | F53: 1.9 | G53: 500.8164597 | H53: 630.5780044 | I53: 1198.1 | J53: =CPU!I234 -> 500.8164597
A54: 2.44 | B54: CPU | C54: CPU013 | D54: FORNECIMENTO E INSTALAÇÃO DE SUPORTE PARA CAIXA D'ÁGUA EM METALON | E54: un | F54: 1 | G54: 3055.076544 | H54: 3846.646877 | I54: 3846.65 | J54: =CPU!I274 -> 3055.076544
A55: 2.45 | D55: MATERIAIS | I55: =SUM(I56:I104) -> 156988.12
A56: 2.46 | B56: Cotação | D56: CONTAINER HIGH CUBE 40 PÉS 12,2X2,3X2,9 (COMPXLARGXALTU) | E56: un | F56: 2 | G56: =J56 -> 19750 | H56: =(G56*K$2) -> 22436 | I56: =ROUND(F56*H56,2) -> 44872 | J56: =CPU!I254 -> 19750
A57: 2.47 | B57: Sinapi | C57: 89356 | D57: TUBO PVC, SOLDAVEL, DN 25 MM, AGUA FRIA (NBR-5648) | E57: m | F57: 6 | G57: =J57 -> 25.43 | H57: =(G57*K$2) -> 28.88848 | I57: 173.33 | J57: 25.43
A58: 2.48 | B58: Sinapi | C58: 89357 | D58: TUBO PVC, SOLDAVEL, DN 32 MM, AGUA FRIA (NBR-5648) | E58: m | F58: 18 | G58: 34.82 | H58: 39.55552 | I58: 712 | J58: 34.82
A59: 2.49 | B59: Sinapi | C59: 89448 | D59: TUBO PVC, SOLDAVEL, DN 40 MM, AGUA FRIA (NBR-5648) | E59: m | F59: 3 | G59: 17.27 | H59: 19.61872 | I59: 58.86 | J59: 17.27
A60: 2.50 | B60: Sinapi | C60: 9838 | D60: TUBO PVC SERIE NORMAL, DN 50 MM, PARA ESGOTO PREDIAL (NBR 5688) | E60: m | F60: 30 | G60: 10.45 | H60: 11.8712 | I60: 356.14 | J60: 10.45
A61: 2.51 | B61: Sinapi | C61: 89362 | D61: JOELHO 90 GRAUS, PVC, SOLDÁVEL, DN 25MM, INSTALADO EM RAMAL OU SUB-RAMAL DE ÁGUA - FORNECIMENTO E INSTALAÇÃO. AF_06/2022 | E61: un | F61: 5 | G61: 10.17 | H61: 11.55312 | I61: 57.77 | J61: 10.17
A62: 2.52 | B62: Sinapi | C62: 89367 | D62: JOELHO 90 GRAUS, PVC, SOLDÁVEL, DN 32MM, INSTALADO EM RAMAL OU SUB-RAMAL DE ÁGUA - FORNECIMENTO E INSTALAÇÃO. AF_06/2022 | E62: un | F62: 4 | G62: 13.97 | H62: 15.86992 | I62: 63.48 | J62: 13.97
A63: 2.53 | B63: Sinapi | C63: 89497 | D63: JOELHO 90 GRAUS, PVC, SOLDÁVEL, DN 40MM, INSTALADO EM PRUMADA DE ÁGUA - FORNECIMENTO E INSTALAÇÃO. AF_06/2022 | E63: un | F63: 3 | G63: 13.87 | H63: 15.75632 | I63: 47.27 | J63: 13.87
A64: 2.54 | B64: Sinapi | C64: 3874 | D64: LUVA SOLDAVEL COM BUCHA DE LATÃO DN25X1/2" | E64: un | F64: 5 | G64: 6.38 | H64: 7.24768 | I64: 36.24 | J64: 6.38
A65: 2.55 | B65: Sinapi | C65: 12909 | D65: CAP PVC, SOLDAVEL, DN 50 MM, SERIE NORMAL, PARA ESGOTO PREDIAL | E65: un | F65: 3 | G65: 4.35 | H65: 4.9416 | I65: 14.82 | J65: 4.35
A66: 2.56 | B66: Sinapi | C66: 7136 | D66: TE DE REDUCAO, PVC, SOLDAVEL, 90 GRAUS, 32 MM X 25 MM, PARA AGUA FRIA PREDIAL | E66: un | F66: 5 | G66: 7.13 | H66: 8.09968 | I66: 40.5 | J66: 7.13
A67: 2.57 | B67: Sinapi | C67: 97 | D67: ADAPTADOR PVC SOLDAVEL, COM FLANGE E ANEL DE VEDACAO, 32 MM X 1", PARA CAIXA D'ÁGUA | E67: un | F67: 1 | G67: 19.77 | H67: 22.45872 | I67: 22.46 | J67: 19.77
A68: 2.58 | B68: Sinapi | C68: 98 | D68: ADAPTADOR PVC SOLDAVEL, COM FLANGE E ANEL DE VEDACAO, 40 MM X 1 1/4", PARA CAIXA D'ÁGUA | E68: un | F68: 1 | G68: 29.6 | H68: 33.6256 | I68: 33.63 | J68: 29.6
A69: 2.59 | B69: Sinapi | C69: 11871 | D69: CAIXA D'AGUA EM POLIETILENO 500 LITROS, COM TAMPA | E69: un | F69: 1 | G69: 556.23 | H69: 631.87728 | I69: 631.88 | J69: 556.23
A70: 2.60 | B70: Sinapi | C70: 94795 | D70: TORNEIRA DE BOIA PARA CAIXA D'ÁGUA, ROSCÁVEL, 1/2" - FORNECIMENTO E INSTALAÇÃO. AF_08/2021 | E70: un | F70: 1 | G70: 35.49 | H70: 40.31664 | I70: 40.32 | J70: 35.49
A71: 2.61 | B71: Sinapi | C71: 799 | D71: BUCHA DE REDUCAO PVC, ROSCAVEL, 1" X 1/2" | E71: un | F71: 1 | G71: 3.74 | H71: 4.24864 | I71: 4.25 | J71: 3.74
A72: 2.62 | B72: Sinapi | C72: 11746 | D72: VALVULA DE ESFERA BRUTA EM BRONZE, BITOLA 1” | E72: un | F72: 1 | G72: 81.32 | H72: 92.37952 | I72: 92.38 | J72: 81.32
A73: 2.63 | B73: Sinapi | C73: 4177 | D73: NIPLE DE FERRO GALVANIZADO, COM ROSCA BSP, DE 1/2" | E73: un | F73: 1 | G73: 5.47 | H73: 6.21392 | I73: =ROUND(F73*H73,2) -> 6.21 | J73: 5.47
A74: 2.64 | B74: Sinapi | C74: 3855 | D74: LUVA SOLDAVEL COM BUCHA DE LATÃO DN25X1/2" | E74: un | F74: 1 | G74: 5.51 | H74: 6.25936 | I74: =ROUND(F74*H74,2) -> 6.26 | J74: 5.51
A75: 2.65 | B75: Sinapi | C75: 11674 | D75: REGISTRO ESFERA PVC DN25 SOLDAVEL | E75: un | F75: 1 | G75: 14.7 | H75: 16.6992 | I75: =ROUND(F75*H75,2) -> 16.7 | J75: 14.7
A76: 2.66 | B76: Sinapi | C76: 35277 | D76: CAIXA DE GORDURA EM PVC, DIAMETRO MINIMO 300 MM, DIAMETRO DE SAIDA 100 MM CAPACIDADE APROXIMADA 18 LITROS, COM TAMPA E CESTO | E76: un | F76: 2 | G76: 354.57 | H76: 402.79152 | I76: =ROUND(F76*H76,2) -> 805.58 | J76: 354.57
A77: 2.67 | B77: Sinapi | C77: 89482 | D77: CAIXA SIFONADA, PVC, DN 100 X 100 X 50 MM, FORNECIDA E INSTALADA EM RAMAIS DE ENCAMINHAMENTO DE ÁGUA PLUVIAL. AF_06/2022 | E77: un | F77: 5 | G77: 39.63 | H77: 45.01968 | I77: 225.1 | J77: 39.63
A78: 2.68 | B78: Sinapi | C78: 89502 | D78: JOELHO 45 GRAUS, PVC, SOLDÁVEL, DN 50MM, INSTALADO EM PRUMADA DE ÁGUA - FORNECIMENTO E INSTALAÇÃO. AF_06/2022 | E78: un | F78: 4 | G78: 17.73 | H78: 20.14128 | I78: 80.57 | J78: 17.73
A79: 2.69 | B79: Sinapi | C79: 89501 | D79: JOELHO 90 GRAUS, PVC, SOLDÁVEL, DN 50MM, INSTALADO EM PRUMADA DE ÁGUA - FORNECIMENTO E INSTALAÇÃO. AF_06/2022 | E79: un | F79: 10 | G79: 15.08 | H79: 17.13088 | I79: 171.31 | J79: 15.08
A80: 2.70 | B80: Sinapi | C80: 103995 | D80: LUVA, PVC, SOLDÁVEL, DN 50MM, INSTALADO EM RAMAL DE DISTRIBUIÇÃO DE ÁGUA - FORNECIMENTO E INSTALAÇÃO. AF_06/2022 | E80: un | F80: 21 | G80: 15.9 | H80: 18.0624 | I80: 379.31 | J80: 15.9
A81: 2.71 | B81: Sinapi | C81: 89567 | D81: JUNÇÃO SIMPLES, PVC, SERIE R, ÁGUA PLUVIAL, DN 100 X 100 MM, JUNTA ELÁSTICA, FORNECIDO E INSTALADO EM RAMAL DE ENCAMINHAMENTO. AF_06/2022 | E81: un | F81: 6 | G81: 77.34 | H81: 87.85824 | I81: 527.15 | J81: 77.34
A82: 2.72 | B82: Sinapi | C82: 12909 | D82: CAP PVC, SOLDAVEL, DN 50 MM, SERIE NORMAL, PARA ESGOTO | E82: un | F82: 1 | G82: 4.35 | H82: 4.9416 | I82: 4.94 | J82: 4.35
A83: 2.73 | B83: Sinapi | C83: 34628 | D83: DISJUNTOR TIPO DIN/IEC, BIPOLAR 63 A | E83: un | F83: 1 | G83: 72.59 | H83: 82.46224 | I83: 82.46 | J83: 72.59
A84: 2.74 | B84: Sinapi | C84: 34616 | D84: DISJUNTOR TIPO DIN/IEC, BIPOLAR DE 6 ATE 32A | E84: un | F84: 6 | G84: 51.47 | H84: 58.46992 | I84: 350.82 | J84: 51.47
A85: 2.75 | B85: ORSE | C85: 07943/ORSE | D85: DISJUNTOR BIPOLAR DR 25A - DISPOSITIVO DIFERENCIAL RESIDUAL, TIPO AC, 30MA | E85: un | F85: 3 | G85: 278.5 | H85: =(G85*$K$2) -> 316.376 | I85: 949.13 | J85: 278.5
A86: 2.76 | B86: Sinapi | C86: 39805 | D86: QUADRO DE DISTRIBUICAO, EM PVC, DE EMBUTIR, COM BARRAMENTO TERRA / NEUTRO, PARA 12 DISJUNTORES NEMA OU 16 DISJUNTORES DIN | E86: un | F86: 1 | G86: 4.35 | H86: 4.9416 | I86: 4.94 | J86: 4.35
A87: 2.77 | B87: Sinapi | C87: 1014 | D87: CABO DE COBRE, FLEXIVEL, CLASSE 4 OU 5, ISOLACAO EM PVC/A, ANTICHAMA BWF-B, 1 CONDUTOR, 450/750 V, SECAO NOMINAL 2,5 MM2 | E87: m | F87: 397.5 | G87: 2.44 | H87: 2.77184 | I87: 1101.81 | J87: 2.44
A88: 2.78 | B88: Sinapi | C88: 39471 | D88: DISPOSITIVO DPS CLASSE II, 1 POLO, TENSAO MAXIMA DE 275 V, CORRENTE MAXIMA DE *45* KA (TIPO AC) | E88: un | F88: 2 | G88: 103.37 | H88: 117.42832 | I88: 234.86 | J88: 103.37
A89: 2.79 | B89: Sinapi | C89: 981 | D89: CABO DE COBRE, FLEXIVEL, CLASSE 4 OU 5, ISOLACAO EM PVC/A, ANTICHAMA BWF-B, 1 CONDUTOR, 450/750 V, SECAO NOMINAL 4 MM2 | E89: m | F89: 77.58 | G89: 4.05 | H89: 4.6008 | I89: 356.93 | J89: 4.05
A90: 2.80 | B90: Sinapi | C90: 993 | D90: CABO DE COBRE, FLEXIVEL, CLASSE 4 OU 5, ISOLACAO EM PVC/A, ANTICHAMA BWF-B, COBERTURA PVC-ST1, ANTICHAMA BWF-B, 1 CONDUTOR, 0,6/1 KV, SECAO NOMINAL 1,5 MM2 | E90: m | F90: 396.4 | G90: 2.05 | H90: 2.3288 | I90: 923.14 | J90: 2.05
A91: 2.81 | B91: Sinapi | C91: 38076 | D91: TOMADAS (2 MODULOS) 2P+T 10A, 250V, CONJUNTO MONTADO PARA EMBUTIR 4" X 2" (PLACA + SUPORTE + MODULOS) | E91: un | F91: 11 | G91: 12.62 | H91: 14.33632 | I91: 157.7 | J91: 12.62
A92: 2.82 | B92: Sinapi | C92: 1871 | D92: CAIXA OCTOGONAL DE FUNDO MOVEL, EM PVC, DE 3" X 3", PARA ELETRODUTO FLEXIVEL CORRUGADO | E92: un | F92: 8 | G92: 3.28 | H92: 3.72608 | I92: 29.81 | J92: 3.28
A93: 2.83 | B93: Sinapi | C93: 2689 | D93: ELETRODUTO PVC FLEXIVEL CORRUGADO, COR AMARELA, DE 20 MM | E93: m | F93: 15.53 | G93: 2.42 | H93: 2.74912 | I93: 42.69 | J93: 2.42
A94: 2.84 | B94: Sinapi | C94: 2688 | D94: ELETRODUTO PVC FLEXIVEL CORRUGADO, COR AMARELA, DE 25 MM | E94: m | F94: 71.74 | G94: 2.62 | H94: 2.97632 | I94: 213.52 | J94: 2.62
A95: 2.85 | B95: Sinapi | C95: 20111 | D95: FITA ISOLANTE ADESIVA ANTICHAMA, USO ATE 750 V, EM ROLO DE 19 MM X 20 M | E95: un | F95: 6 | G95: 12 | H95: 13.632 | I95: 81.79 | J95: 12
A96: 2.86 | B96: Sinapi | C96: 1873 | D96: CAIXA DE PASSAGEM, EM PVC, DE 4" X 4", PARA ELETRODUTO FLEXIVEL CORRUGADO | E96: un | F96: 1 | G96: 4.85 | H96: 5.5096 | I96: 5.51 | J96: 4.85
A97: 2.87 | B97: Sinapi | C97: 38063 | D97: INTERRUPTOR PARALELO 10A, 250V, CONJUNTO MONTADO PARA EMBUTIR 4" X 2" (PLACA + SUPORTE + MODULO) | E97: un | F97: 4 | G97: 9.49 | H97: 10.78064 | I97: 43.12 | J97: 9.49
A98: 2.88 | B98: Sinapi | C98: 38078 | D98: INTERRUPTOR PARALELO + TOMADA 2P+T 10A, 250V, CONJUNTO MONTADO PARA EMBUTIR 4" X 2" (PLACA + SUPORTE + MODULOS) | E98: un | F98: 1 | G98: 16.28 | H98: 18.49408 | I98: 18.49 | J98: 16.28
A99: 2.89 | B99: Sinapi | C99: 38775 | D99: LUMINARIA TIPO TARTARUGA PARA AREA EXTERNA EM ALUMINIO, COM GRADE, PARA 1 LAMPADA, BASE E27, POTENCIA MAXIMA 40/60 W (NAO INCLUI LAMPADA) | E99: un | F99: 8 | G99: 80.79 | H99: 91.77744 | I99: 734.22 | J99: 80.79
A100: 2.90 | B100: Sinapi | C100: 10569 | D100: CAIXA DE PASSAGEM / DERIVACAO / LUZ, OCTOGONAL 4 X4, EM ACO ESMALTADA, COM FUNDO MOVEL SIMPLES (FMS) | E100: un | F100: 6 | G100: 3.07 | H100: 3.48752 | I100: 20.93 | J100: 3.07
A101: 2.91 | B101: Sinapi | C101: 100954 | D101: TRANSPORTE COM CAMINHÃO CARROCERIA COM GUINDAUTO (MUNCK), MOMENTO MÁXIMO DE CARGA 11,7 TM, EM VIA INTERNA (DENTRO DO CANTEIRO - UNIDADE: TXKM). AF_07/2020 | E101: TXKM | F101: 600 | G101: 9.32 | H101: 10.58752 | I101: =ROUND(F101*H101,2) -> 6352.51 | J101: 9.32
A102: 2.92 | B102: Sinapi | C102: 100788 | D102: KIT CAVALETE PARA GÁS - SEM MEDIDOR OU REGULADOR - ENTRADA INDIVIDUAL PRINCIPAL, EM AÇO GALVANIZADO DN 15 E 25 MM (1/2" E 1") - FORNECIMENTO E INSTALAÇÃO | E102: und | F102: 1 | G102: 747.31 | H102: 848.94416 | I102: =ROUND(F102*H102,2) -> 848.94 | J102: 747.31
A103: 2.93 | B103: CPU | C103: CPU008 | D103: CHAPA XADREZ EM ALUMINIO PARA PISO e:3mm, INCLUSO REBITE PARA FIXAÇÃO - APENAS MATERIAL | E103: m² | F103: 56.544 | G103: 454.2312 | H103: 516.0066432 | I103: =ROUND(F103*H103,2) -> 29177.08 | J103: =CPU!I185 -> 454.2312
A104: 2.94 | B104: CPU | C104: CPU006 | D104: REVESTIMENTO DE PAREDES EM CHAPAS DE AÇO INOXIDÁVEL AISI 304 - APENAS MATERIAL | E104: m² | F104: 160.29 | G104: 361.236 | H104: 410.364096 | I104: =ROUND(F104*H104,2) -> 65777.26 | J104: =CPU!I153 -> 361.236

Sheet CPU
A1: MINISTÉRIO DA INTEGRAÇÃO E DO DESENVOLVIMENTO REGIONAL
A2: COMPANHIA DE DESENVOLVIMENTO DOS VALES DO SÃO FRANCISCO E DO PARNAÍBA
A3: SEDE
A4: PLANILHA ORÇAMENTÁRIA DE ESTIMATIVA GERAL PARA O ESTADO DO TOCANTINS | H4: Base SINAPI-TO 03/2025 ORSE 02/2025
H5: Data: Maio/2025 - Não desonerado
A6: COMPOSIÇÕES DE PREÇO UNITÁRIO
A8: COMPOSIÇÃO DE PREÇO UNITÁRIO | I8: CPU003
A9: DESCRIÇÃO DO SERVIÇO | H9: DATA BASE: | I9: 2024-07-01
A10: ADMINISTRAÇÃO LOCAL | H10: UNIDADE: | I10: mês
A11: MATERIAL
A12: BASE | B12: CÓDIGO | C12: DISCRIMINAÇÃO | D12: UNI | E12: QUANT. | F12: PROD | G12: P.UN.PROD | H12: P.UN.IMPR | I12: P.TOTAL
A13: MERCADO | C13: ALUGUEL | D13: mês | E13: 1 | H13: 800 | I13: =E13*H13 -> 800
A14: MERCADO | C14: TELEFONE E INTERNET | D14: mês | E14: 1 | H14: 99.9 | I14: 99.9
A15: MERCADO | C15: ENERGIA ELÉTRICA | D15: kwh | E15: 200 | H15: 0.53 | I15: 106
A16: MERCADO | C16: ÁGUA E ESGOTO | D16: mês | E16: 1 | H16: 100 | I16: 100
A17: MERCADO | C17: MATERIAL PARA ESCRITÓRIO | D17: mês | E17: 1 | H17: 150 | I17: 150
A18: MERCADO | C18: MATERIAL DE LIMPEZA | D18: mês | E18: 1 | H18: 50 | I18: 50
A19: SUB-TOTAL | I19: =SUM(I13:I18) -> 1305.9
A20: MÃO DE OBRA
A21: BASE | B21: CÓDIGO | C21: DISCRIMINAÇÃO | D21: UNI | E21: QUANT. | H21: P.UNIT. | I21: P.TOTAL
A22: MERCADO | C22: ENGENHEIRO DE OBRA | D22: mês | E22: 1 | H22: 8483 | I22: =E22*H22 -> 8483
A23: MERCADO | C23: MESTRE DE OBRAS | D23: mês | E23: 1 | H23: 4515.12 | I23: =E23*H23 -> 4515.12
A24: MERCADO | C24: AUXILIAR DE ESCRITORIO COM ENCARGOS COMPLEMENTARES | D24: mês | E24: 1 | H24: 1100 | I24: =E24*H24 -> 1100
A25: MERCADO | C25: TÉCNICO EM SEGURANÇA DO TRABALHO | D25: h | E25: 44 | H25: 27.26 | I25: =E25*H25 -> 1199.44
A26: MERCADO | C26: VIGIA | D26: mês | E26: 1 | H26: 1100 | I26: =E26*H26 -> 1100
A27: SUB-TOTAL | I27: =SUM(I22:I26) -> 16397.56
A28: PRODUÇÃO DA EQUIPE | D28: 1 | E28: CUSTO | I28: =I27+I19 -> 17703.46
A29: TOTAL - R$ | I29: =I28/D28 -> 17703.46
A30: BDI % | I30: 1
A31: TOTAL DO SERVIÇO - R$ | I31: =I29*I30 -> 17703.46
A33: COMPOSIÇÃO DE PREÇO UNITÁRIO | I33: CPU001
A34: DESCRIÇÃO DO SERVIÇO | H34: DATA BASE: | I34: 2025-03-01
A35: EXECUÇÃO DE INSTALAÇÕES HIDROSSANITÁRIAS, EXCLUSIVE EQUIPAMENTOS | H35: UNIDADE: | I35: cj
A36: MÃO DE OBRA
A37: BASE | B37: CÓDIGO | C37: DISCRIMINAÇÃO | D37: UNI | E37: QUANT. | H37: P.UNIT. | I37: P.TOTAL
A38: SINAPI | B38: 88316 | C38: SERVENTE DE OBRAS | D38: h | E38: 80 | H38: 21.62 | I38: =E38*H38 -> 1729.6
A39: SINAPI | B39: 88309 | C39: PEDREIRO | D39: h | E39: 40 | H39: 27.54 | I39: =E39*H39 -> 1101.6
A40: SUB-TOTAL | I40: =SUM(I38:I39) -> 2831.2
A41: PRODUÇÃO DA EQUIPE | D41: 1 | E41: CUSTO | I41: =SUM(I40) -> 2831.2
A42: TOTAL - R$ | I42: =I41/D41 -> 2831.2
A43: BDI % | I43: 1
A44: TOTAL DO SERVIÇO - R$ | I44: =I42*I43 -> 2831.2
A46: COMPOSIÇÃO DE PREÇO UNITÁRIO | I46: CPU002
A47: DESCRIÇÃO DO SERVIÇO | H47: DATA BASE: | I47: 2025-03-01
A48: EXECUÇÃO DE INSTALAÇÕES ELÉTRICAS, EXCLUSIVE EQUIPAMENTOS | H48: UNIDADE: | I48: cj
A49: MÃO DE OBRA
A50: BASE | B50: CÓDIGO | C50: DISCRIMINAÇÃO | D50: UNI | E50: QUANT. | H50: P.UNIT. | I50: P.TOTAL
A51: SINAPI | B51: 88247 | C51: AUXILIAR DE ELETRICISTA | D51: h | E51: 80 | H51: 25.54 | I51: =E51*H51 -> 2043.2
A52: SINAPI | B52: 88264 | C52: ELETRICISTA | D52: h | E52: 40 | H52: 30.69 | I52: =E52*H52 -> 1227.6
A53: SUB-TOTAL | I53: =SUM(I51:I52) -> 3270.8
A54: PRODUÇÃO DA EQUIPE | D54: 1 | E54: CUSTO | I54: =SUM(I53) -> 3270.8
A55: TOTAL - R$ | I55: =I54/D54 -> 3270.8
A56: BDI % | I56: 1
A57: TOTAL DO SERVIÇO - R$ | I57: =I55*I56 -> 3270.8
A60: COMPOSIÇÃO DE PREÇO UNITÁRIO | I60: CPU003
A61: DESCRIÇÃO DO SERVIÇO | H61: DATA BASE: | I61: 2025-03-01
A62: CORTE DE CONTAINER PARA ESQUADRIAS | H62: UNIDADE: | I62: m²
A63: MATERIAL
A64: BASE | B64: CÓDIGO | C64: DISCRIMINAÇÃO | D64: UNI | E64: QUANT. | H64: P.UNIT. | I64: P.TOTAL
A65: SINAPI | B65: 11359 | C65: ESMERILHADEIRA ANGULAR ELETRICA, DIAMETRO DO DISCO 7 '' (180 MM), ROTACAO 8500RPM, POTENCIA 2400 W | D65: un | E65: 0.071 | H65: 882.75 | I65: =E65*H65 -> 62.67525
A66: SINAPI | B66: 44531 | C66: DISCO DE CORTE DIAMANTADO SEGMENTADO DIAMETRO DE 180 MM PARA ESMERILHADEIRA 7 " | D66: un | E66: 1 | H66: 82.88 | I66: =E66*H66 -> 82.88
A67: SUB-TOTAL | I67: =SUM(I65:I66) -> 145.55525
A68: MÃO DE OBRA
A69: BASE | B69: CÓDIGO | C69: DISCRIMINAÇÃO | D69: UNI | E69: QUANT. | H69: P.UNIT. | I69: P.TOTAL
A70: SINAPI | B70: 88317 | C70: SOLDADOR COM ENCARGOS COMPLEMENTARES | D70: h | E70: 0.5 | H70: 31.01 | I70: =E70*H70 -> 15.505
A71: SINAPI | B71: 88315 | C71: SERRALHEIRO COM ENCARGOS COMPLEMENTARES | D71: h | E71: 0.5 | H71: 27.35 | I71: =E71*H71 -> 13.675
A72: SUB-TOTAL | I72: =SUM(I70:I71) -> 29.18
A73: PRODUÇÃO DA EQUIPE | D73: 1 | E73: CUSTO | I73: =I72+I67 -> 174.73525
A74: TOTAL - R$ | I74: =I73/D73 -> 174.73525
A75: BDI % | I75: 1
A76: TOTAL DO SERVIÇO - R$ | I76: =I74*I75 -> 174.73525
A78: COMPOSIÇÃO DE PREÇO UNITÁRIO | I78: CPU010
A79: DESCRIÇÃO DO SERVIÇO | H79: DATA BASE: | I79: 2024-07-01
A80: FORNECIMENTO E MONTAGEM DE ESTRUTURA PARA COBERTURA COM ÁREA TOTAL DE 86,27 M² INCLUINDO CALHA E TELHA SANDUÍCHE | H80: UNIDADE: | I80: cj
A81: MÃO DE OBRA
A82: BASE | B82: CÓDIGO | C82: DISCRIMINAÇÃO | D82: UNI | E82: QUANT. | H82: P.UNIT. | I82: P.TOTAL
A83: COTAÇÃO | C83: FABRICAÇÃO E MONTAGEM DE ESTRUTURA METÁLICA PARA COBERTURA DE UNIDADE COM ÁREA TOTAL DE 86,26 M² | D83: cj | E83: 1 | H83: 24877.99 | I83: =E83*H83 -> 24877.99
A84: SUB-TOTAL | I84: =SUM(I83:I83) -> 24877.99
A85: PRODUÇÃO DA EQUIPE | D85: 1 | E85: CUSTO | I85: =SUM(I84) -> 24877.99
A86: TOTAL - R$ | I86: =I85/D85 -> 24877.99
A87: BDI % | I87: 1
A88: TOTAL DO SERVIÇO - R$ | I88: =I86*I87 -> 24877.99
A90: COMPOSIÇÃO DE PREÇO UNITÁRIO | I90: CPU011
A91: DESCRIÇÃO DO SERVIÇO | H91: DATA BASE: | I91: 2024-07-01
A92: FORNECIMENTO E MONTAGEM DE ESTRUTURA PARA COBERTURA COM ÁREA TOTAL DE 137,9 M² INCLUINDO CALHA E TELHA SANDUÍCHE | H92: UNIDADE: | I92: cj
A93: MÃO DE OBRA
A94: BASE | B94: CÓDIGO | C94: DISCRIMINAÇÃO | D94: UNI | E94: QUANT. | H94: P.UNIT. | I94: P.TOTAL
A95: COTAÇÃO | C95: FABRICAÇÃO E MONTAGEM DE ESTRUTURA METÁLICA PARA COBERTURA DE UNIDADE COM ÁREA TOTAL DE 137,9 M² | D95: cj | E95: 1 | H95: 39043.9 | I95: =E95*H95 -> 39043.9
A96: SUB-TOTAL | I96: =SUM(I95:I95) -> 39043.9
A97: PRODUÇÃO DA EQUIPE | D97: 1 | E97: CUSTO | I97: =SUM(I96) -> 39043.9
A98: TOTAL - R$ | I98: =I97/D97 -> 39043.9
A99: BDI % | I99: 1
A100: TOTAL DO SERVIÇO - R$ | I100: =I98*I99 -> 39043.9
A102: COMPOSIÇÃO DE PREÇO UNITÁRIO | I102: CPU004
A103: DESCRIÇÃO DO SERVIÇO | H103: DATA BASE: | I103: 2025-03-01
A104: MODIFICAÇÕES NO CONTAINER COM CORTE POR ESMERILHADEIRA | H104: UNIDADE: | I104: m
A105: MATERIAL
A106: BASE | B106: CÓDIGO | C106: DISCRIMINAÇÃO | D106: UNI | E106: QUANT. | H106: P.UNIT. | I106: P.TOTAL
A107: SINAPI | B107: 11359 | C107: ESMERILHADEIRA ANGULAR ELETRICA, DIAMETRO DO DISCO 7 '' (180 MM), ROTACAO 8500RPM, POTENCIA 2400 W | D107: un | E107: 0.04 | H107: 882.75 | I107: =E107*H107 -> 35.31
A108: SINAPI | B108: 44531 | C108: DISCO DE CORTE DIAMANTADO SEGMENTADO DIAMETRO DE 180 MM PARA ESMERILHADEIRA 7 " | D108: un | E108: 0.5 | H108: 82.88 | I108: =E108*H108 -> 41.44
A109: SUB-TOTAL | I109: =SUM(I107:I108) -> 76.75
A110: MÃO DE OBRA
A111: BASE | B111: CÓDIGO | C111: DISCRIMINAÇÃO | D111: UNI | E111: QUANT. | H111: P.UNIT. | I111: P.TOTAL
A112: SINAPI | B112: 88317 | C112: SOLDADOR COM ENCARGOS COMPLEMENTARES | D112: h | E112: 0.25 | H112: 31.01 | I112: =E112*H112 -> 7.7525
A113: SINAPI | B113: 88315 | C113: SERRALHEIRO COM ENCARGOS COMPLEMENTARES | D113: h | E113: 0.25 | H113: 27.35 | I113: =E113*H113 -> 6.8375
A114: SUB-TOTAL | I114: =SUM(I112:I113) -> 14.59
A115: PRODUÇÃO DA EQUIPE | D115: 1 | E115: CUSTO | I115: =I114+I109 -> 91.34
A116: TOTAL - R$ | I116: =I115/D115 -> 91.34
A117: BDI % | I117: 1
A118: TOTAL DO SERVIÇO - R$ | I118: =I116*I117 -> 91.34
A120: COMPOSIÇÃO DE PREÇO UNITÁRIO | I120: CPU005
A121: DESCRIÇÃO DO SERVIÇO | H121: DATA BASE: | I121: 2025-03-01
A122: MODIFICAÇÕES NO CONTAINER UNIÃO ATRAVÉS DO PROCESSO DE SOLDAGEM, INCLUSO IÇAMENTO DO CONTAINER | H122: UNIDADE: | I122: m
A123: EQUIPAMENTO
A124: BASE | B124: CÓDIGO | C124: DISCRIMINAÇÃO | D124: UNI | E124: QUANT. | H124: P.UNIT. | I124: P.TOTAL
A125: SINAPI | B125: 92716 | C125: APARELHO PARA CORTE E SOLDA OXI-ACETILENO SOBRE RODAS, INCLUSIVE CILINDROS E MAÇARICOS | D125: chp | E125: 0.1846 | H125: 109.39 | I125: =E125*H125 -> 20.193394
A126: SINAPI | B126: 92715 | C126: APARELHO PARA CORTE E SOLDA OXI-ACETILENO SOBRE RODAS, INCLUSIVE CILINDROS E MAÇARICOS - MATERIAIS NA OPERAÇÃO. | D126: h | E126: 1.56 | H126: 109 | I126: =E126*H126 -> 170.04
A127: SINAPI | B127: 5928 | C127: GUINDAUTO HIDRÁULICO, CAPACIDADE MÁXIMA DE CARGA 6200 KG, MOMENTO MÁXIMO DE CARGA 11,7 TM, ALCANCE MÁXIMO HORIZONTAL 9,70 M, INCLUSIVE CAMINHÃO TOCO PBT 16.000 KG, POTÊNCIA DE 189 CV | D127: chp | E127: 0.2388 | H127: 301.94 | I127: =E127*H127 -> 72.103272
A128: SUB-TOTAL | I128: =SUM(I125:I127) -> 262.336666
A129: SERVIÇOS - COMPOSIÇÕES AUXILIARES
A130: BASE | B130: CÓDIGO | C130: DISCRIMINAÇÃO | D130: UNI | E130: QUANT. | H130: P.UNIT. | I130: P.TOTAL
A131: SINAPI | B131: 98746 | C131: SOLDA DE TOPO EM CHAPA/PERFIL/TUBO DE AÇO CHANFRADO, ESPESSURA=1/4''. | D131: m | E131: 1 | H131: 65.36 | I131: =E131*H131 -> 65.36
A132: SUB-TOTAL | I132: =SUM(I131:I131) -> 65.36
A133: MÃO DE OBRA
A134: BASE | B134: CÓDIGO | C134: DISCRIMINAÇÃO | D134: UNI | E134: QUANT. | H134: P.UNIT. | I134: P.TOTAL
A135: SINAPI | B135: 88317 | C135: SOLDADOR COM ENCARGOS COMPLEMENTARES | D135: h | E135: 1.56 | H135: 31.01 | I135: =E135*H135 -> 48.3756
A136: SUB-TOTAL | I136: =SUM(I135:I135) -> 48.3756
A137: PRODUÇÃO DA EQUIPE | D137: 1 | E137: CUSTO | I137: =I136+I132+I128 -> 376.072266
A138: TOTAL - R$ | I138: =I137/D137 -> 376.072266
A139: BDI % | I139: 1
A140: TOTAL DO SERVIÇO - R$ | I140: =I138*I139 -> 376.072266
A143: COMPOSIÇÃO DE PREÇO UNITÁRIO | I143: CPU006
A144: DESCRIÇÃO DO SERVIÇO | H144: DATA BASE: | I144: 2025-03-01
A145: REVESTIMENTO DE PAREDES EM CHAPAS DE AÇO INOXIDÁVEL AISI 304 | H145: UNIDADE: | I145: m²
A146: MATERIAL
A147: BASE | B147: CÓDIGO | C147: DISCRIMINAÇÃO | D147: UNI | E147: QUANT. | H147: P.UNIT. | I147: P.TOTAL
A148: COTAÇÃO | C148: CHAPAS DE AÇO INOXIDÁVEL AISI 304 | D148: KG | E148: 9.6 | H148: 34 | I148: =E148*H148 -> 326.4
A149: SINAPI | B149: 131 | C149: ADESIVO ESTRUTURAL A BASE DE RESINA EPOXI, BICOMPONENTE, PASTOSO (TIXOTROPICO) | D149: KG | E149: 0.6 | H149: 58.06 | I149: =E149*H149 -> 34.836
A150: SUB-TOTAL | I150: =SUM(I148:I149) -> 361.236
A151: TOTAL - R$ | I151: =I150 -> 361.236
A152: BDI % | I152: 1
A153: TOTAL DO SERVIÇO - R$ | I153: =I151*I152 -> 361.236
A156: COMPOSIÇÃO DE PREÇO UNITÁRIO | I156: CPU007
A157: DESCRIÇÃO DO SERVIÇO | H157: DATA BASE: | I157: 2025-03-01
A158: REVESTIMENTO CERÂMICO PARA PISO COM PLACAS TIPO ESMALTADA DE DIMENSÕES 45x45cm COM ARGAMASSA AC III | H158: UNIDADE: | I158: m²
A159: MATERIAL
A160: BASE | B160: CÓDIGO | C160: DISCRIMINAÇÃO | D160: UNI | E160: QUANT. | H160: P.UNIT. | I160: P.TOTAL
A161: Sinapi | B161: 37596 | C161: ARGAMASSA COLANTE TIPO AC III E | D161: KG | E161: 9.1325 | H161: 2.82 | I161: =E161*H161 -> 25.75365
A162: Sinapi | B162: 1287 | C162: PISO EM CERAMICA ESMALTADA EXTRA, COR LISA, PEI MAIOR OU IGUAL A 4, FORMATO MENOR OU IGUAL A 5 CM2 | D162: m² | E162: 1.1136 | H162: 36.31 | I162: =E162*H162 -> 40.434816
A163: Sinapi | B163: 34357 | C163: REJUNTE CIMENTÍCIO, QUALQUER COR | D163: KG | E163: 0.188 | H163: 4.69 | I163: =E163*H163 -> 0.88172
A164: SUB-TOTAL | I164: =SUM(I161:I163) -> 67.070186
A165: MÃO DE OBRA
A166: BASE | B166: CÓDIGO | C166: DISCRIMINAÇÃO | D166: UNI | E166: QUANT. | H166: P.UNIT. | I166: P.TOTAL
A167: SINAPI | B167: 88317 | C167: AZULEJISTA OU LADRILHISTA COM ENCARGOS COMPLEMENTARES | D167: h | E167: 0.8064 | H167: 31.01 | I167: =E167*H167 -> 25.006464
A168: SINAPI | B168: 88316 | C168: SERVENTE COM ENCARGOS COMPLEMENTARES | D168: h | E168: 0.2068 | H168: 21.62 | I168: =E168*H168 -> 4.471016
A169: SUB-TOTAL | I169: =SUM(I167:I168) -> 29.47748
A170: PRODUÇÃO DA EQUIPE | D170: 1 | E170: CUSTO | I170: =I169+I164 -> 96.547666
A171: TOTAL - R$ | I171: =I170/D170 -> 96.547666
A172: BDI % | I172: 1
A173: TOTAL DO SERVIÇO - R$ | I173: =I171*I172 -> 96.547666
A176: COMPOSIÇÃO DE PREÇO UNITÁRIO | I176: CPU008
A177: DESCRIÇÃO DO SERVIÇO | H177: DATA BASE: | I177: 2025-03-01
A178: CHAPA XADREZ EM ALUMINIO PARA PISO e:3mm, INCLUSO REBITE PARA FIXAÇÃO - MATERIAL | H178: UNIDADE: | I178: m
A179: MATERIAL
A180: BASE | B180: CÓDIGO | C180: DISCRIMINAÇÃO | D180: UNI | E180: QUANT. | H180: P.UNIT. | I180: P.TOTAL
A181: SINAPI | B181: 1337 | C181: CHAPA DE ACO XADREZ PARA PISOS, E = 1/4" (6,30 MM) 54,53 KG/M2 | D181: kg | E181: 38 | H181: 9.87 | I181: =E181*H181 -> 375.06
A182: SINAPI | B182: 10997 | C182: ELETRODO REVESTIDO AWS - E7018, DIAMETRO IGUAL A 4,00 MM | D182: Kg | E182: 2.88 | H182: 27.49 | I182: =E182*H182 -> 79.1712
A183: SUB-TOTAL | I183: =SUM(I181:I182) -> 454.2312
A184: BDI % | I184: 1
A185: TOTAL DO SERVIÇO - R$ | I185: =I183 -> 454.2312
A188: COMPOSIÇÃO DE PREÇO UNITÁRIO | I188: CPU009
A189: DESCRIÇÃO DO SERVIÇO | H189: DATA BASE: | I189: 2025-03-01
A190: CHAPA XADREZ EM ALUMINIO PARA PISO e:3mm, INCLUSO REBITE PARA FIXAÇÃO - MÃO DE OBRA | H190: UNIDADE: | I190: m
A191: MÃO DE OBRA
A192: BASE | B192: CÓDIGO | C192: DISCRIMINAÇÃO | D192: UNI | E192: QUANT. | H192: P.UNIT. | I192: P.TOTAL
A193: SINAPI | B193: 88315 | C193: SERRALHEIRO COM ENCARGOS | D193: H | E193: 8.99 | H193: 27.35 | I193: =E193*H193 -> 245.8765
A194: SINAPI | B194: 88316 | C194: SERVENTE COM ENCARGOS COMPLEMENTARES | D194: H | E194: 6.42 | H194: 21.62 | I194: =E194*H194 -> 138.8004
A195: SUB-TOTAL | I195: =SUM(I193:I194) -> 384.6769
A196: PRODUÇÃO DA EQUIPE | D196: 1 | E196: CUSTO | I196: =I195 -> 384.6769
A197: TOTAL - R$ | I197: =I196/D196 -> 384.6769
A198: TOTAL DO SERVIÇO - R$ | I198: =I196 -> 384.6769
A200: COMPOSIÇÃO DE PREÇO UNITÁRIO | I200: CPU0010
A201: DESCRIÇÃO DO SERVIÇO | H201: DATA BASE: | I201: 2025-03-01
A202: REVESTIMENTO DE PAREDES EM CHAPAS DE AÇO INOXIDÁVEL AISI 304 - CONSIDERANDO CHAPA DE 1,2mm | H202: UNIDADE: | I202: M²
A203: APENAS MÃO DE OBRA
A204: BASE | B204: CÓDIGO | C204: DISCRIMINAÇÃO | D204: UNI | E204: QUANT. | H204: P.UNIT. | I204: P.TOTAL
A205: SINAPI | B205: 88317 | C205: SOLDADOR COM ENCARGOS COMPLEMENTARES | D205: h | E205: 0.8 | H205: 31.01 | I205: =E205*H205 -> 24.808
A206: SINAPI | B206: 88315 | C206: SERRALHEIRO COM ENCARGOS COMPLEMENTARES | D206: h | E206: 0.8 | H206: 27.35 | I206: =E206*H206 -> 21.88 | Q206: =
A207: SUB-TOTAL | I207: =SUM(I205:I206) -> 46.688
A208: PRODUÇÃO DA EQUIPE | D208: 1 | E208: CUSTO | I208: =I207 -> 46.688
A209: TOTAL - R$ | I209: =I208/D208 -> 46.688
A210: BDI % | I210: 1
A211: TOTAL DO SERVIÇO - R$ | I211: =I209*I210 -> 46.688
A213: COMPOSIÇÃO DE PREÇO UNITÁRIO | I213: CPU011
A214: DESCRIÇÃO DO SERVIÇO | H214: DATA BASE: | I214: 2025-03-01
A215: GUARDA-CORPO DE AÇO CARBONO, MONTANTES TUBULARES DE 1.1/2" ESPAÇADOS EM 0,75M, ALTURA APROXIMADA DE 0,90M, PREPARADO COM FUNDO E TINTA EPÓXI NA COR AMARELA | H215: UNIDADE: | I215: m
A216: MATERIAL
A217: BASE | B217: CÓDIGO | C217: DISCRIMINAÇÃO | D217: UNI | E217: QUANT. | H217: P.UNIT. | I217: P.TOTAL
A218: SINAPI | B218: 1332 | C218: CHAPA DE ACO GROSSA, ASTM A36, E = 3/8 " (9,53 MM) 74,69 KG/M2 | D218: KG | E218: 0,8960000 | H218: 8.78 | I218: =E218*H218 -> 7.86688
A219: SINAPI | B219: 11002 | C219: ELETRODO REVESTIDO AWS - E6013, DIAMETRO IGUAL A 2,50 MM | D219: KG | E219: 0,0650000 | H219: 26.4 | I219: 1.716
... 52 more rows
